Cogmind - Beta 13 @@@ ROGUE MODE // 2024.06.23 @ 08:58:38 // Winter2019/RPGLIKE Player: Haldron Result: Destroyed 0b10! Performance ------------- Evolutions (9) 4500 Regions Visited (30) 6000 Robots Destroyed (646) 3230 Value Destroyed (29253) 29253 Prototype IDs (94) 1880 Alien Tech Used (9) 1800 Bonus (32433) 32433 TOTAL SCORE: 79096 Bonus ------- Triggered High Security 2000 High Alert Combat Kills 11423 Follower Combat Kills 1878 Network Hubs Disabled 800 Met Data Miner 300 Destroyed Z-Imprinter 1000 Met Warlord at Base 500 MAIN.C Attacked Warlord 500 Warlord Defense Kills 2224 Used Core Reset Matrix 3000 Scanned by Researcher 500 Met Sigix 2000 Escaped with Sigix 5000 Win 3000 Friendly Fire -1692 Cogmind --------- Core Integrity 841/1850 Matter 465/475 Energy 306/820 System Corruption 0% Temperature Cool (7) Movement Flying (15) Location Tau Ceti IV Orbit Parts ------- > --- POWER (2) -------- Light Neutrino Core Micro Antimatter Reactor > --- PROPULSION (7) --- Diametric Drive Diametric Drive Electron Diverter Electron Diverter Electron Diverter Electron Diverter Electron Diverter > --- UTILITY (11) ----- Zionite Biocell Zionite Metafield Generator Advanced Signal Interpreter Long-range Terrain Scanner Surveybot 24 Chip Weapon Mount Precision Energy Filter Advanced Reaction Control System Advanced Phase Shifter Graphene Brace Advanced Corruption Screen > --- WEAPON (5) ------- Enhanced Nova Cannon Improved Potential Cannon Core Cannon > --- INVENTORY (9) ---- Precision Energy Filter Advanced Reaction Control System Experimental Shock Absorption System Subatomic Replicator Gamma Bomb Array Sigix Broadsword Sigix Containment Pod Peak State ------------ > --- POWER ------------ Light Neutrino Core Micro Antimatter Reactor > --- PROPULSION ------- Diametric Drive Diametric Drive Electron Diverter Electron Diverter Electron Diverter Electron Diverter Electron Diverter > --- UTILITY ---------- Zionite Biocell Zionite Metafield Generator Advanced Signal Interpreter Long-range Terrain Scanner Surveybot 24 Chip Weapon Mount Precision Energy Filter Advanced Reaction Control System Advanced Phase Shifter Graphene Brace Advanced Corruption Screen > --- WEAPON ----------- Enhanced Nova Cannon Improved Potential Cannon Core Cannon > --- INVENTORY -------- Precision Energy Filter Experimental Shock Absorption System Subatomic Replicator Gamma Bomb Array Sigix Broadsword Sigix Containment Pod [Rating: 226] Favorites ----------- Power Micro Fission Core Engine Ion Engine Power Core Micro Fission Core Reactor Micro Antimatter Reactor Propulsion Electron Diverter Leg Aluminum Leg Wheel Wheel Hover Unit Zionite Glidesys I Flight Unit Electron Diverter Utility Graphene Brace Device Graphene Brace Storage Zionite Biocell Processor Advanced Signal Interpreter Hackware System Shield Protection Light Regenerative Plating Weapon Power Sword Energy Gun Zionite Phaser-S Energy Cannon Phase Cannon Ballistic Gun Subdweller Machine Gun Ballistic Cannon Battle Cannon Launcher Long-range Missile Launcher Special Weapon Mining Laser Impact Weapon Gravity Flail Slashing Weapon Power Sword Piercing Weapon Makeshift Spear Special Melee Weapon Advanced Datajack Build | -11 -10 -10 -8 -7 -7 -7 -7 -6 -6 -6 -6 -6 -6 -5 -5 -5 -5 -5 -4 -4 -4 -4 -4 -4 -3 -3 -2 -2 -2 -1 ------- Run | Yrd Mat Sub Mat Fac Low Low Dat Pro Fac Low Low Zio Dee Pro Fac Upp Upp War Pro Fac Ext Cet Arc Hub Res Qua Res Tes Sec Acc Slots Evolved 20 | 3 2 . 3 2 3 . . . 2 . 1 . . . 1 . . 1 . . . . 1 . . . . . . 1 Power 1 | . . . . . . . . . . . . . . . 1 . . . . . . . . . . . . . . . Propulsion 5 | 1 . . 2 1 . . . . 1 . . . . . . . . . . . . . . . . . . . . . Utility 10 | 1 1 . 1 1 2 . . . 1 . 1 . . . . . . . . . . . 1 . . . . . . 1 Weapon 4 | 1 1 . . . 1 . . . . . . . . . . . . 1 . . . . . . . . . . . . Parts Attached 530 | 8 29 22 20 28 14 10 . 1 79 13 8 4 42 . 44 18 14 19 1 20 7 2 3 15 5 17 11 13 15 48 Power 25 | 1 3 . 2 3 . . . . 3 . . . 2 . 3 . . 3 . . . . . 2 1 2 . . . . Engine 7 | 1 3 . . . . . . . 1 . . . 1 . 1 . . . . . . . . . . . . . . . Core 15 | . . . 2 3 . . . . 2 . . . . . 2 . . 2 . . . . . 2 1 1 . . . . Reactor 3 | . . . . . . . . . . . . . 1 . . . . 1 . . . . . . . 1 . . . . Propulsion 69 | 2 7 3 3 5 . 1 . . 4 . . 1 11 . 9 . . 2 . 2 . . . . . 6 3 . 4 6 Treads . | . . . . . . . . . . . . . . . . . . . . . . . . . . . . . . . Leg 8 | 2 5 . . . . . . . . . . . 1 . . . . . . . . . . . . . . . . . Wheel 7 | . 2 3 2 . . . . . . . . . . . . . . . . . . . . . . . . . . . Hover 9 | . . . . . . . . . . . . . 8 . 1 . . . . . . . . . . . . . . . Flight 45 | . . . 1 5 . 1 . . 4 . . 1 2 . 8 . . 2 . 2 . . . . . 6 3 . 4 6 Utility 243 | 1 9 1 8 9 7 1 . 1 35 12 4 2 18 . 20 14 8 10 1 10 2 2 2 11 3 3 5 4 7 33 Device 175 | 1 4 . 2 6 4 . . . 22 10 2 1 8 . 14 13 8 7 1 9 2 2 1 11 3 2 4 4 7 27 Storage 9 | . . . . . . . . . . . . . 2 . 2 1 . 2 . . . . . . . . . . . 2 Processor 12 | . . . 1 2 1 . . . 3 . 2 . . . . . . 1 . . . . 1 . . . . . . 1 Hackware 10 | . . . 5 . . . . 1 2 . . . . . . . . . . . . . . . . . . . . 2 Protection 37 | . 5 1 . 1 2 1 . . 8 2 . 1 8 . 4 . . . . 1 . . . . . 1 1 . . 1 Artifact . | . . . . . . . . . . . . . . . . . . . . . . . . . . . . . . . Weapon 193 | 4 10 18 7 11 7 8 . . 37 1 4 1 11 . 12 4 6 4 . 8 5 . 1 2 1 6 3 9 4 9 Energy Gun 48 | 4 8 2 3 . . 4 . . . . . . 6 . 3 2 3 2 . 3 . . . . . . . 3 3 2 Energy Cannon 39 | . . 2 . 4 3 1 . . 11 . 2 . . . . . . . . 1 . . . . 1 4 3 4 . 3 Ballistic Gun 8 | . . 4 . 2 . . . . . . . . . . . . . . . . . . . 1 . . . 1 . . Ballistic Cannon 5 | . . 3 . . . . . . . . . . . . . . . . . 1 . . . . . . . 1 . . Launcher 35 | . 2 2 . 2 3 . . . 10 . . . 2 . 6 1 3 . . 1 . . . . . . . . . 3 Special Weapon 5 | . . 5 . . . . . . . . . . . . . . . . . . . . . . . . . . . . Impact Weapon 7 | . . . 3 1 . 1 . . . . . . . . . . . . . 1 1 . . . . . . . . . Slashing Weapon 40 | . . . 1 1 1 2 . . 16 1 2 . 2 . 3 1 . 2 . . 4 . . 1 . 1 . . 1 1 Piercing Weapon 2 | . . . . . . . . . . . . 1 1 . . . . . . . . . . . . . . . . . Special Melee Weapon 4 | . . . . 1 . . . . . . . . . . . . . . . 1 . . 1 . . 1 . . . . Unidentified Prototypes 34 | . . . 1 . . . . . . . . . 12 . 1 . . 7 . 1 . . . . . 2 . 7 1 2 Corrupted Parts 1 | . . . . . . . . . . . . . . . . . . . . . . . . 1 . . . . . . System Corruption 6 | . . . . . . . . . . . . . . . . . . . . . . . . 6 . . . . . . Parts Lost 4 | . . . . 1 . . . . . . . . . . 2 . . . . . . . . 1 . . . . . . Power 1 | . . . . . . . . . . . . . . . . . . . . . . . . 1 . . . . . . Propulsion . | . . . . . . . . . . . . . . . . . . . . . . . . . . . . . . . Utility 3 | . . . . 1 . . . . . . . . . . 2 . . . . . . . . . . . . . . . Weapon . | . . . . . . . . . . . . . . . . . . . . . . . . . . . . . . . Highest Loss Streak 1 | . . . . 1 . . . . . . . . . . 1 . . . . . . . . 1 . . . . . . To Critical Strikes . | . . . . . . . . . . . . . . . . . . . . . . . . . . . . . . . Average Slot Usage (%) 91 | . 97 94 75 85 99 98 100 100 99 100 100 100 97 100 96 84 85 75 72 77 89 90 90 90 91 95 90 87 85 89 Engine 2 | . 12 11 . . . . . . 2 5 5 5 5 5 3 . . . . . . . . . . . . . . . Core 4 | . . . 7 6 6 5 5 5 2 . . . . . 3 9 9 8 9 9 9 9 8 7 8 6 4 4 4 4 Leg 1 | . 23 . . . . . . . . . . . . . . . . . . . . . . . . . . . . . Wheel 2 | . . 21 4 . . . . . . . . . . . . . . . . . . . . . . . . . . . Hover 1 | . . . . . . . . . . . . . 6 30 17 . . . . . . . . . . . . . . . Flight 16 | . . . 4 13 33 29 29 29 27 31 30 30 23 . 8 14 14 14 18 17 18 18 17 17 17 24 25 26 25 28 Device 19 | . 12 11 6 9 10 17 17 16 17 28 30 27 25 25 24 32 33 31 27 24 22 22 21 21 21 21 21 21 20 21 Storage 1 | . . . . . . . . . . . . . . 5 5 4 4 3 4 4 4 4 4 4 4 4 4 4 4 4 Processor 8 | . . . 3 6 14 17 17 17 13 12 11 15 12 5 4 4 4 5 9 9 9 9 10 13 13 13 13 13 12 12 Hackware 3 | . . . 20 26 5 . . . 10 . . . . . . . . . . . . . . . . . . . . 1 Protection 5 | . 16 17 3 1 5 4 5 5 1 . . 2 5 10 8 . . . . . 4 4 4 4 4 3 3 4 4 1 Energy Gun 4 | . 29 6 3 . . . . . . . . . 6 10 9 8 8 2 4 1 . . . . . . . . . . Energy Cannon 2 | . . 3 . 2 3 4 5 5 1 . 1 . . . . . . . . . 4 4 4 3 3 3 4 3 4 8 Ballistic Gun 1 | . . 14 3 3 . . . . . . . . . . . . . . . . . . . . . . . . . . Impact Weapon 1 | . . . 7 3 6 4 5 5 . . . . . . . . . . . 2 3 4 4 4 . . . . . . Slashing Weapon 7 | . . . 3 7 7 10 11 11 19 21 19 16 8 5 5 8 9 7 . . 6 9 8 8 13 10 4 4 3 1 Naked Turns . | . . . . . . . . . . . . . . . . . . . . . . . . . . . . . . . Heaviest Build 83 | 10 24 40 32 28 34 36 36 36 40 41 44 45 54 50 58 52 48 56 54 53 56 55 55 54 52 65 57 77 69 83 Greatest Support 94 | 20 20 30 24 30 30 36 36 36 44 44 44 45 94 94 94 58 49 61 61 61 56 56 56 56 56 58 58 68 84 85 Greatest Overweight (x) 5 | 1 5 3 3 3 1 2 . . 2 . . 1 3 . 3 . . 3 . . 4 . . . . 1 1 1 . 1 Average Overweight (x) . | . . 1 . . . . . . . . . . . . . . . . . . . . . . . . . . . . Largest Inventory Capacity 9 | 2 3 4 4 4 4 4 4 4 5 5 5 5 5 5 6 6 6 6 6 6 6 6 6 6 6 7 7 7 9 9 Average Capacity 4 | 2 2 3 4 4 4 4 4 4 4 5 5 5 5 5 5 6 6 6 6 6 6 6 6 6 6 6 7 7 7 9 Most Carried 9 | 1 3 4 4 4 4 4 4 4 5 5 5 5 5 5 6 6 6 6 6 6 6 6 6 6 6 7 7 7 9 9 Average Carried 4 | . 1 3 3 3 3 4 4 4 4 5 5 5 4 5 5 5 5 5 6 5 6 6 5 6 5 6 7 6 7 8 Final Capacity 9 | 2 3 4 4 4 4 4 4 4 5 5 5 5 5 5 6 6 6 6 6 6 6 6 6 6 6 7 7 7 9 9 Final Carried 9 | 1 3 4 4 4 4 4 4 4 5 5 5 5 5 5 5 6 6 6 6 6 6 6 6 6 6 7 7 7 9 9 Class Distribution -------------------- 31% | Hacker-Scout 17% | Scavenger-Scout 7% | Scavenger-Tank 6% | Alien-Scout 6% | Commander-Scout 4% | Commander-Sprinter 4% | Derelict-Scout 4% | Subdweller-Tank 4% | Hacker-Gladiator 3% | Mutant 3% | Tank Dominant Class ---------------- Mutant | -10/Materials Scavenger-Tank | -10/Subcaves Hacker-Gladiator | -8/Materials Hacker-Scout | -7/Factory Commander-Sprinter | -7/Lower Caves Commander-Scout | -7/Lower Caves Commander-Scout | -7/Data Miner Commander-Scout | -6/Proximity Caves Hacker-Scout | -6/Factory Hacker-Scout | -6/Lower Caves Hacker-Scout | -6/Lower Caves Derelict-Scout | -6/Zion Derelict-Scout | -6/Deep Caves Scavenger-Scout | -5/Proximity Caves Scavenger-Scout | -5/Factory Scavenger-Scout | -5/Upper Caves Scavenger-Scout | -5/Upper Caves Scavenger-Scout | -5/Warlord Hacker-Scout | -4/Proximity Caves Hacker-Scout | -4/Factory Hacker-Scout | -4/Extension Hacker-Scout | -4/Cetus Hacker-Scout | -4/Archives Hacker-Scout | -4/Hub_04(d) Hacker-Scout | -3/Research Hacker-Scout | -3/Quarantine Hacker-Scout | -2/Research Hacker-Scout | -2/Testing Alien-Scout | -2/Section 7 Alien-Scout | -1/Access Resources | -11 -10 -10 -8 -7 -7 -7 -7 -6 -6 -6 -6 -6 -6 -5 -5 -5 -5 -5 -4 -4 -4 -4 -4 -4 -3 -3 -2 -2 -2 -1 ----------- Run | Yrd Mat Sub Mat Fac Low Low Dat Pro Fac Low Low Zio Dee Pro Fac Upp Upp War Pro Fac Ext Cet Arc Hub Res Qua Res Tes Sec Acc Matter Collected 8247 | 280 448 617 339 348 195 110 . . 1095 185 78 69 408 110 737 191 160 680 20 460 100 . 70 165 142 180 110 135 305 510 Remotely . | . . . . . . . . . . . . . . . . . . . . . . . . . . . . . . . Salvage Created 25596 | 86 980 387 1093 977 314 121 . 61 3336 1018 367 . 626 133 3760 547 313 1269 319 1347 1066 . 524 1342 257 446 367 660 1196 2684 Parts 1286 | 3 51 27 96 62 30 4 . 9 209 39 13 . 36 11 189 22 7 56 18 37 38 . 27 54 11 30 33 23 55 96 Haulers Intercepted 20 | . 2 . 4 2 . . . . 2 . . . . . 5 . . . . 1 . . . . 1 . 1 . . 2 Recyclers Shooed 8 | . . . 1 1 . . . . 3 . . . . . 1 . . . . 1 1 . . . . . . . . . Parts Field Recycled . | . . . . . . . . . . . . . . . . . . . . . . . . . . . . . . . Retrieved Matter . | . . . . . . . . . . . . . . . . . . . . . . . . . . . . . . . Parts Self-Destructed 145 | . . 9 . . 22 13 . 6 . 38 10 . . 10 . 19 10 . 8 . . . . . . . . . . . Prevented 35 | . . . . . 8 5 . 1 . 6 3 . . . . 8 4 . . . . . . . . . . . . . Kills | -11 -10 -10 -8 -7 -7 -7 -7 -6 -6 -6 -6 -6 -6 -5 -5 -5 -5 -5 -4 -4 -4 -4 -4 -4 -3 -3 -2 -2 -2 -1 ------- Run | Yrd Mat Sub Mat Fac Low Low Dat Pro Fac Low Low Zio Dee Pro Fac Upp Upp War Pro Fac Ext Cet Arc Hub Res Qua Res Tes Sec Acc Combat Hostiles Destroyed 522 | . 16 19 27 20 13 1 . 4 81 22 7 . 12 9 64 15 7 21 9 35 16 . 4 15 3 5 7 8 20 62 Melee 219 | . . . 23 16 6 1 . 2 51 22 5 . 9 2 6 3 1 2 . 2 11 . 4 13 3 5 7 3 15 7 Guns 76 | . 14 16 1 . . . . . . . . . . 3 26 10 2 1 . 1 . . . . . . . . 2 . Cannons 36 | . . 3 . . . . . 2 5 . . . . . . . . . . 1 . . . . . . . 2 . 23 AOE 165 | . 1 . 3 4 5 . . . 24 . . . 3 4 32 1 3 17 9 23 . . . . . . . 2 3 31 Classes Destroyed 28 | 2 7 2 2 1 1 . . 2 5 . . . 2 . 1 1 . 1 . . . . . . . . . 1 . . Worker 25 | . 3 . 2 1 . . . . 6 . . . . . 9 . . . . 1 . . . 2 . . . . . 1 Builder 18 | . . . 4 1 . . . . 3 . . . . . 6 . . . . 1 . . . 1 . . . . . 2 Tunneler 8 | 1 1 . . 1 . . . . . . . . . . 2 . . . . . . . . 2 . . . . . 1 Hauler 20 | . 2 . 4 2 . . . . 2 . . . . . 5 . . . . 1 . . . . 1 . 1 . . 2 Recycler 21 | 1 2 . 1 1 . . . . 2 . . . . . 4 . . . . . 2 . . 3 . . . 1 3 1 Minesweeper 3 | . . . . . . . . . . . . . . . . 2 1 . . . . . . . . . . . . . Mechanic 7 | . 1 . . . . . . . 3 . . . . . 1 . . . . 1 . . . . . . . . 1 . Operator 21 | . 2 . 1 2 . . . . . . . . . . 2 . . . . 1 1 . 8 2 1 . . 1 . . Drone 20 | . . . . . . . . 2 . . . . . 2 . . . . 2 . . . . . . . . . 4 10 Watcher 38 | . 3 . 2 1 . . . . 4 . . . . . 6 . . . . 1 . . . 2 3 2 3 . 3 8 Swarmer 110 | . 3 4 10 3 5 1 . . 11 3 . . . 4 13 4 4 2 5 14 1 . . 5 . . 4 . 4 10 Cutter 5 | . . . . . . . . . 2 . . . . . . . . . . . . . . . . . . . 2 1 Saboteur 2 | . . . . . . . . . 1 . . . . . 1 . . . . . . . . . . . . . . . Grunt 197 | . 13 1 11 13 6 . . . 38 18 5 . . 2 30 3 1 12 . 9 6 . . 2 1 . . 1 . 25 Brawler 11 | . . . 1 . . . . . 5 . . . . . 1 2 . . . . 1 . . . . . . . . 1 Duelist 16 | . . . . . . . . . 5 . 2 . . . 4 3 . . . . . . . . . . . . . 2 Protector 6 | . . . . . . . . . 2 . . . . . 2 . . 1 . . . . . 1 . . . . . . Researcher 1 | . . . . . . . . . . . . . . . . . . . . . . . . . . . . 1 . . Sentry 59 | . . 2 5 2 1 . . 1 9 1 . . . 1 3 2 . 1 . 2 4 . 4 5 2 . 3 2 4 5 Hunter 21 | . . . . . . . . . . . . . . . 3 . . 2 . 8 1 . . . . 2 . 1 4 . Programmer 45 | . . . . 2 . . . 1 7 . . . . . 7 . 2 1 2 2 3 . . 2 . 3 . 4 1 8 Heavy 1 | . . . . . . . . . 1 . . . . . . . . . . . . . . . . . . . . . Behemoth 2 | . . . . . 1 . . . . . . . . . . 1 . . . . . . . . . . . . . . S7 Guard 1 | . . . . . . . . . . . . . . . . . . . . . . . . . . . . . 1 . Executioner 1 | . . . . . . . . . . . . . . . . . . 1 . . . . . . . . . . . . Subdweller 12 | . . 12 . . . . . . . . . . . . . . . . . . . . . . . . . . . . Z-Light 9 | . . . . . . . . . . . . . 9 . . . . . . . . . . . . . . . . . Samaritan 1 | . . . . . . . . 1 . . . . . . . . . . . . . . . . . . . . . . Assembled 3 | . . . . . . . . . . . . . 2 . . . . . . . . . . . . . . . . 1 Thug 1 | . . . . . . . . . . . . . . . . . . 1 . . . . . . . . . . . . Bouncer 4 | . . . . . . . . . . . . . . . . . . 4 . . . . . . . . . . . . Best Kill Streak 21 | 2 5 4 6 8 4 1 . 2 9 7 3 . 3 4 12 4 4 10 9 7 6 . 8 10 2 3 4 3 7 21 Combat Bots Only 17 | . 3 4 3 4 4 1 . 2 9 7 3 . 3 4 6 4 4 10 9 7 6 . 4 3 2 3 4 3 5 17 Max Kills in Single Turn 8 | 1 1 2 2 1 2 1 . 1 5 1 1 . 2 2 8 1 3 6 3 4 1 . 1 7 1 1 1 3 4 4 Gunslinging 1 | . . 1 . . . . . . . . . . . . 1 . . . . . . . . . . . . . . . Exploded 4 | . 1 . 2 1 2 . . . 3 . . . 2 2 4 1 3 4 3 4 . . . . . . . 2 2 3 Melee 2 | . . . 1 1 1 1 . 1 1 1 1 . 2 1 1 1 1 1 . 1 1 . 1 1 1 1 1 1 1 1 Uniques/NPCs Destroyed 1 | . . . . . . . . . . . . . 1 . . . . . . . . . . . . . . . . . Z-Imprinter (-6/Deep Caves) Combat | -11 -10 -10 -8 -7 -7 -7 -7 -6 -6 -6 -6 -6 -6 -5 -5 -5 -5 -5 -4 -4 -4 -4 -4 -4 -3 -3 -2 -2 -2 -1 -------- Run | Yrd Mat Sub Mat Fac Low Low Dat Pro Fac Low Low Zio Dee Pro Fac Upp Upp War Pro Fac Ext Cet Arc Hub Res Qua Res Tes Sec Acc Hostile Shots Fired 2851 | . 49 98 148 185 107 41 . 25 369 43 10 . 66 4 367 76 20 72 20 240 215 10 54 80 28 43 57 36 240 148 Missed 1575 | . 10 21 52 80 42 18 . 15 200 15 6 . 39 2 218 41 15 39 11 175 140 8 37 54 20 31 33 22 158 73 Damage Taken 22162 | . 485 1214 1103 1290 1164 327 . 109 2769 308 73 . 554 34 2229 389 75 605 183 1220 1361 52 420 729 164 227 558 370 2127 2023 Core 16039 | . 320 738 827 1023 837 212 . 77 1997 238 61 . 442 26 1212 315 59 490 142 949 1039 40 305 560 113 146 411 278 1567 1615 Absorbed by Shields 1715 | . . . . . 51 15 . . . 115 25 . 142 13 594 128 23 83 . 189 195 . . 142 . . . . . . Redirected to Core 13971 | . 259 671 702 893 596 154 . 67 1669 199 38 . 327 26 1128 242 59 418 142 856 882 40 278 476 97 124 411 256 1519 1442 Redirected to Shielding 372 | . . . . . . . . . . . . . . . 372 . . . . . . . . . . . . . . . Ignored by Resistances 2807 | . 39 156 153 147 132 27 . 10 344 99 8 . 95 7 290 69 5 85 16 190 196 6 51 46 22 23 73 41 246 231 Regen/Repaired (Parts) 1097 | . . . . 2 50 45 . . . . . 27 . . . . . . . 35 78 16 46 40 30 39 113 77 306 193 Core Remaining (%) 73 | 100 . 60 77 . . . . 100 . . . . . 99 . . . . 61 . . . . 51 . 95 . . 46 45 Volleys Fired 756 | 9 93 83 18 5 20 3 . 2 61 . 16 . 14 11 151 32 10 16 9 37 8 1 . 13 7 2 . 8 22 105 Largest 4 | 2 3 3 2 2 1 4 . 1 1 . 1 . 4 2 2 2 2 2 1 2 1 1 . 1 1 1 . 1 2 1 Hottest 300 | 90 180 165 81 69 69 220 . 69 75 . 75 . 266 120 120 120 120 300 300 300 85 85 . 85 85 113 . 200 200 300 Shots Fired 1155 | 18 193 159 25 7 20 12 . 2 61 . 16 . 32 20 275 56 16 19 9 39 8 1 . 13 7 2 . 8 32 105 Gun 778 | 18 178 96 21 4 . 12 . . . . . . 29 18 255 56 15 19 9 14 . . . 6 . . . 1 27 . Cannon 257 | . . 41 . 1 9 . . 2 38 . 16 . . . . . . . . 8 8 1 . 7 7 2 . 7 5 105 Launcher 98 | . 15 . 4 2 11 . . . 23 . . . 3 2 20 . 1 . . 17 . . . . . . . . . . Special 22 | . . 22 . . . . . . . . . . . . . . . . . . . . . . . . . . . . Kinetic 153 | . . 125 13 4 . . . . . . . . . . . . . . . 5 . . . 6 . . . . . . Thermal 413 | 16 165 34 8 . . . . . . . . . 8 . . . . 12 9 17 8 1 . 7 7 2 . 8 6 105 Explosive 87 | . 15 . 4 2 . . . . 23 . . . 3 2 20 . 1 . . 17 . . . . . . . . . . Electromagnetic 104 | 2 13 . . 1 20 12 . 2 38 . 16 . . . . . . . . . . . . . . . . . . . Slashing 26 | . . . . . . . . . . . . . . . . . . . . . . . . . . . . . 26 . Phasic 372 | . . . . . . . . . . . . . 21 18 255 56 15 7 . . . . . . . . . . . . Robot Hit Streak 31 | 6 11 12 12 3 9 5 . 2 6 . 7 . 2 7 20 23 14 31 19 10 2 . . . . . . 7 3 9 Robot Miss Streak 5 | 1 2 3 5 3 2 2 . . 3 . 3 . 2 1 3 1 . 1 2 4 1 . . . . . . . 4 5 Penetration Max . | . . . . . . . . . . . . . . . . . . . . . . . . . . . . . . . Secondary Targets 9 | . 1 1 . . . . . . . . . . . . 6 1 . . . . . . . . . . . . . . Max Gunslinging Chain 1 | . 1 1 . . . . . . . . . . . . 1 1 . . . . . . . . . . . . . . Shots Hit Robots 1456 | 10 100 78 100 61 38 24 . 12 196 67 20 . 33 17 214 64 18 24 9 34 60 . 27 44 28 18 23 15 50 72 Core Hits 981 | 3 46 30 43 38 17 11 . 4 178 25 8 . 19 9 186 23 8 65 13 69 12 . 13 30 12 7 7 8 28 69 Critical Kills 3 | . . . . . . . . . . . . . . . . . . . . 1 1 . . . . . . 1 . . Critical Parts Destroyed 17 | . . 1 . 1 . 1 . 1 . . . . . . . . . . . 2 6 . 1 2 . . . . . 2 Critical Strikes 143 | . 16 4 10 11 3 2 . 1 24 9 1 . 2 . 16 6 . 2 . 3 10 . 3 7 4 1 2 2 2 2 Burn 15 | . 15 . . . . . . . . . . . . . . . . . . . . . . . . . . . . . Meltdown 1 | . . . . . . . . . . . . . . . . . . . . . . . . . . . . 1 . . Destroy 3 | . . 1 . . . . . . . . . . . . . . . . . . . . . . . . . . . 2 Blast 3 | . . 3 . . . . . . . . . . . . . . . . . . . . . . . . . . . . Corrupt 1 | . 1 . . . . . . . . . . . . . . . . . . . . . . . . . . . . . Smash 16 | . . . . 1 . 1 . 1 . . . . . . . . . . . 3 7 . 1 2 . . . . . . Sever 86 | . . . 10 10 3 1 . . 24 9 1 . . . 5 2 . 1 . . 3 . 2 5 4 1 2 1 2 . Impale 2 | . . . . . . . . . . . . . 2 . . . . . . . . . . . . . . . . . Intensify 16 | . . . . . . . . . . . . . . . 11 4 . 1 . . . . . . . . . . . . Melee Attacks 1311 | . . . 144 101 42 20 . 19 239 76 12 27 39 5 61 21 13 14 . 48 68 . 32 69 52 31 33 24 83 38 Impact 155 | . . . 38 11 7 3 . 10 1 . . . . . . . . . . 48 22 . 3 12 . . . . . . Slashing 1102 | . . . 106 89 35 17 . 9 238 76 12 12 15 5 61 21 13 14 . . 33 . 29 57 52 30 33 24 83 38 Piercing 39 | . . . . . . . . . . . . 15 24 . . . . . . . . . . . . . . . . . Sneak Attacks 94 | . . . 13 8 1 . . 1 15 3 . . 1 . 3 7 2 . . 1 16 . 10 4 1 . 2 1 4 1 Combat Hostiles 17 | . . . . 1 . . . . 3 3 . . 1 . . . 1 . . . 1 . 1 3 . . 1 . 1 1 Follow-up Attacks 159 | . . . 21 7 4 4 . 1 47 26 3 . 11 . 4 4 1 3 . . 6 . 4 8 5 . . . . . Damage Inflicted 107867 | 120 1412 1669 4141 3934 1773 1120 . 639 13968 3325 743 . 1940 874 15291 2553 1009 3709 826 6997 3226 . 2591 3953 1570 1170 2404 2977 5970 17963 Guns 11011 | 120 1354 1346 157 55 . 93 . . . . . . . 363 5220 1485 231 278 35 124 . . . . . . . . 150 . Cannons 10194 | . . 275 . . 143 . . 116 624 . 265 . . . . . . . . . 59 . . . . . . 858 377 7477 Explosions 37627 | . 58 . 423 1334 440 . . . 5294 . . . 323 406 8006 . 164 3070 791 5524 . . . 1352 . . . 1045 1090 8307 Melee 48987 | . . . 3561 2545 1190 1027 . 523 8050 3325 478 . 1617 105 2065 1068 614 361 . 1349 3167 . 2591 2601 1570 1170 2404 1074 4353 2179 Ramming . | . . . . . . . . . . . . . . . . . . . . . . . . . . . . . . . Kinetic 1619 | . . 1435 129 55 . . . . . . . . . . . . . . . . . . . . . . . . . . Thermal 31428 | 120 1308 234 28 739 83 . . . 565 . . . . . 1764 . . 3183 826 3580 59 . . . . . . 1903 1467 15569 Explosive 13869 | . . . 423 542 . . . . 4117 . . . 323 406 5796 . 164 . . 2068 . . . . . . . . . 30 Electromagnetic 4350 | . 104 . . 53 500 93 . 116 1236 . 265 . . . 446 . . . . . . . . 1352 . . . . . 185 Impact 4410 | . . . 418 197 115 164 . 280 . . . . . . . . . . . 1349 1402 . 173 312 . . . . . . Slashing 44002 | . . . 3143 2348 1075 863 . 243 8050 3325 478 . 892 105 2065 1068 614 361 . . 1765 . 2418 2289 1570 1170 2404 1074 4503 2179 Piercing 725 | . . . . . . . . . . . . . 725 . . . . . . . . . . . . . . . . . Phasic 7464 | . . . . . . . . . . . . . . 363 5220 1485 231 165 . . . . . . . . . . . . Highest Corruption 9 | . 2 2 . 3 . . . . 2 . . . . . 3 3 . . 1 . 2 2 . 9 . 1 . 1 1 . Average Corruption 1 | . 1 2 . 2 . . . . 1 . . . . . 1 2 . . 1 . 1 1 . 2 . 1 . 1 1 . Corruption Purged 22 | . . . . 4 . . . . 5 . . . . . 4 3 . . . . . 2 . 2 . . . 1 1 . Corruption Blocked 2 | . . . . . . . . . . . . . . . . . . . . . . . . . . . . . . 2 Effects 72 | . 8 38 . 9 . . . . 4 . . . . . 5 1 . . . . 1 1 . 3 . . . 1 1 . Message Errors 15 | . 1 8 . 3 . . . . . . . . . . 1 . . . . . 1 1 . . . . . . . . Matter Fused 20 | . 1 10 . 4 . . . . 2 . . . . . 1 1 . . . . . . . . . . . 1 . . Heat Flow Errors 6 | . . 1 . 1 . . . . 1 . . . . . 1 . . . . . . . . 2 . . . . . . Energy Discharges 7 | . 1 5 . . . . . . . . . . . . 1 . . . . . . . . . . . . . . . Parts Rejected 4 | . . 2 . . . . . . 1 . . . . . 1 . . . . . . . . . . . . . . . Parts Fused 2 | . 1 1 . . . . . . . . . . . . . . . . . . . . . . . . . . . . Data Loss (minor) 7 | . 3 3 . 1 . . . . . . . . . . . . . . . . . . . . . . . . . . Data Loss (major) 5 | . . 3 . . . . . . . . . . . . . . . . . . . . . 1 . . . . 1 . Misfires 2 | . . 2 . . . . . . . . . . . . . . . . . . . . . . . . . . . . Alerts 2 | . . 2 . . . . . . . . . . . . . . . . . . . . . . . . . . . . Weapon Failures 2 | . 1 1 . . . . . . . . . . . . . . . . . . . . . . . . . . . . Overload Shots . | . . . . . . . . . . . . . . . . . . . . . . . . . . . . . . . Overflow Damage 11835 | . . 2 257 474 74 173 . 136 668 207 16 . 124 57 557 118 207 15 11 1232 796 . 606 478 187 74 438 715 889 3324 Projectiles 2533 | . . 2 . . . . . 18 . . 13 . . . . . . . . 246 . . . . . . . 296 43 1915 Explosions 2522 | . . . . 110 . . . . 78 . . . . 26 452 . . 15 11 386 . . . 73 . . . 178 139 1054 Melee 6780 | . . . 257 364 74 173 . 118 590 207 3 . 124 31 105 118 207 . . 600 796 . 606 405 187 74 438 241 707 355 Knockbacks 24 | . . 3 1 2 1 1 . 3 . . . . . . . . . . . 8 3 . . 2 . . . . . . Impact 18 | . . . 1 2 1 1 . 3 . . . . . . . . . . . 5 3 . . 2 . . . . . . Kinetic 3 | . . 3 . . . . . . . . . . . . . . . . . . . . . . . . . . . . Secondary 3 | . . . . . . . . . . . . . . . . . . . . 3 . . . . . . . . . . Self-Inflicted Damage 1067 | . 30 . . 20 . . . . 181 . . . . . 100 . . . 38 104 . . . 377 . . . 80 49 88 Shots 27 | . 1 . . 1 . . . . 6 . . . . . 3 . . . 2 6 . . . 4 . . . 1 1 2 Rammed . | . . . . . . . . . . . . . . . . . . . . . . . . . . . . . . . Targets Rammed . | . . . . . . . . . . . . . . . . . . . . . . . . . . . . . . . Kicked . | . . . . . . . . . . . . . . . . . . . . . . . . . . . . . . . Crushed . | . . . . . . . . . . . . . . . . . . . . . . . . . . . . . . . Highest Temperature 574 | . 574 76 4 96 30 131 . 10 257 . 10 . 120 4 369 . . 258 431 152 38 . . 256 . . 129 276 270 160 Average Temperature 89 | . 167 44 3 45 15 73 . 6 55 . 4 . 38 3 117 . . 81 125 60 27 . . 97 . . 49 116 69 32 Received Heat Transfer 4105 | . 249 342 594 375 311 18 . 24 690 126 12 . 168 12 393 63 6 30 . 123 251 9 81 12 18 . 45 36 54 63 Effects 12 | . 3 . . . . . . . . . . . . . 8 . . . 1 . . . . . . . . . . . Shutdowns 3 | . 1 . . . . . . . . . . . . . 1 . . . 1 . . . . . . . . . . . Energy Bleed 1 | . 1 . . . . . . . . . . . . . . . . . . . . . . . . . . . . . Interference 6 | . . . . . . . . . . . . . . . 6 . . . . . . . . . . . . . . . Damage (minor) 2 | . 1 . . . . . . . . . . . . . 1 . . . . . . . . . . . . . . . Siege Activations . | . . . . . . . . . . . . . . . . . . . . . . . . . . . . . . . Robots Corrupted 7 | . . . . . 2 . . . 1 . 2 . . . . . . . . . . . . 2 . . . . . . Combat Hostiles 6 | . . . . . 2 . . . 1 . 2 . . . . . . . . . . . . 1 . . . . . . Parts Fried 59 | . . . 3 . 3 . . 1 3 . 4 . . . 5 2 . 1 . 7 12 . 2 14 . . . . . 2 Impact Corruptions 53 | . . . 3 2 1 2 . 5 . . . . . . . . . . . 20 13 . 2 5 . . . . . . Robots Melted 7 | . 1 . . . . . . . . . . . . . . . . 2 . 2 . . . . . . . 1 . 1 Combat Hostiles 6 | . 1 . . . . . . . . . . . . . . . . 1 . 2 . . . . . . . 1 . 1 Parts Melted 69 | . 17 1 1 . . . . . 1 . . . 2 . 1 . 2 12 5 10 . . . . 1 . . 2 2 12 Heat Transferred 28614 | 334 4675 337 74 400 150 . . . 550 . . . . . 1050 . . 4223 1046 3763 74 . . . . . . 1050 1220 9668 Parts Sabotaged 3 | . . . . . . . . . . . . . . . 3 . . . . . . . . . . . . . . . Parts Stolen . | . . . . . . . . . . . . . . . . . . . . . . . . . . . . . . . Parts Stripped . | . . . . . . . . . . . . . . . . . . . . . . . . . . . . . . . Power Chain Reactions 8 | . 1 . . . 2 . . . 3 . . . . . 1 . . . . . . . . . . . . . . 1 Alert | -11 -10 -10 -8 -7 -7 -7 -7 -6 -6 -6 -6 -6 -6 -5 -5 -5 -5 -5 -4 -4 -4 -4 -4 -4 -3 -3 -2 -2 -2 -1 ------- Run | Yrd Mat Sub Mat Fac Low Low Dat Pro Fac Low Low Zio Dee Pro Fac Upp Upp War Pro Fac Ext Cet Arc Hub Res Qua Res Tes Sec Acc Peak Influence 4502 | 10 345 . 403 632 . . . . 1999 . . . . . 4502 . . . . 2925 2681 1537 794 2359 1597 1136 1041 752 1144 4218 Initial 1500 | . 6 . . 158 . . . . . . . . . . 399 . . . . 257 1432 1500 614 48 1238 838 558 585 313 607 Average 770 | 3 141 . 165 277 . . . . 962 . . . . . 1584 . . . . 1296 1926 1501 392 501 1385 953 734 455 661 1614 Maximum Alert Level 5 | . 1 . 2 2 . . . . 5 . . . . . 5 . . . . 5 5 4 3 5 4 4 3 3 4 5 Low Security (%) 27 | 100 74 . 70 43 . . . . 18 . . . . . . . . . . . . . 27 33 . . . . . . Level 1 17 | . 25 . 28 28 . . . . 5 . . . . . 6 . . . . 12 . . 29 38 . . . 52 5 . Level 2 15 | . . . . 27 . . . . 3 . . . . . 26 . . . . 13 . . 29 12 . . 44 32 56 8 Level 3 14 | . . . . . . . . . 22 . . . . . 13 . . . . 22 . . 13 . . 78 55 14 34 35 Level 4 11 | . . . . . . . . . 43 . . . . . 7 . . . . 16 15 100 . 3 100 21 . . 3 14 Level 5 9 | . . . . . . . . . . . . . . . 25 . . . . 36 60 . . 12 . . . . . 34 High Security 4 | . . . . . . . . . 6 . . . . . 21 . . . . . 24 . . . . . . . . 6 Max Security . | . . . . . . . . . . . . . . . . . . . . . . . . . . . . . . . Squads Dispatched 160 | . 4 . 4 16 . 1 . . 31 . . . . . 32 . . . . 18 8 1 . 11 5 1 3 1 4 20 Investigation 42 | . 2 . . 9 . 1 . . 7 . . . . . 7 . . . . 6 1 1 . 2 2 . . . . 4 Extermination 17 | . . . . 3 . . . . 5 . . . . . 1 . . . . 1 . . . 2 . 1 . . 1 3 Reinforcement 44 | . 2 . 4 1 . . . . 6 . . . . . 8 . . . . 6 2 . . 3 1 . 1 1 3 6 Assault 47 | . . . . . . . . . 10 . . . . . 16 . . . . 5 5 . . . 2 . 2 . . 7 Garrison 10 | . . . . 3 . . . . 3 . . . . . . . . . . . . . . 4 . . . . . . Intercept . | . . . . . . . . . . . . . . . . . . . . . . . . . . . . . . . Searches Triggered 1 | . . . . . . . . . . . . . . . 1 . . . . . . . . . . . . . . . Data Miner Redirects 3 | . . . . . . . . . . . . . . . . . . . . . . . . . . . . . . 3 Construction Impeded 7 | . . . . . . . . . 2 . . . . . 1 . . . . 2 1 . . . . . . . . 1 Haulers Reinforced 7 | . . . . 1 . . . . 1 . . . . . 3 . . . . 2 . . . . . . . . . . Active Scanning Responses . | . . . . . . . . . . . . . . . . . . . . . . . . . . . . . . . Cargo Convoy Interrupts 1 | . . . . 1 . . . . . . . . . . . . . . . . . . . . . . . . . . Stealth | -11 -10 -10 -8 -7 -7 -7 -7 -6 -6 -6 -6 -6 -6 -5 -5 -5 -5 -5 -4 -4 -4 -4 -4 -4 -3 -3 -2 -2 -2 -1 --------- Run | Yrd Mat Sub Mat Fac Low Low Dat Pro Fac Low Low Zio Dee Pro Fac Upp Upp War Pro Fac Ext Cet Arc Hub Res Qua Res Tes Sec Acc Distress Signals 43 | . 1 . 4 2 . . . . 3 . . . . . 6 . . 3 . 9 3 1 . 4 . 1 . 2 2 2 Communications Jammed . | . . . . . . . . . . . . . . . . . . . . . . . . . . . . . . . Distress Signals . | . . . . . . . . . . . . . . . . . . . . . . . . . . . . . . . Times Spotted 1112 | . 25 21 57 45 23 8 . 3 135 27 7 . 14 7 148 41 16 48 9 129 70 7 5 47 21 10 16 22 54 97 Peak Tracking Total 26 | . 3 4 6 14 5 7 . 1 17 4 4 . 5 3 26 7 4 10 5 24 26 7 3 20 16 4 10 9 12 14 Tactical Retreats 136 | . 1 3 9 7 7 . . . 15 1 . . . . 17 12 3 4 . 21 6 . . 6 1 . 3 1 12 7 Traps | -11 -10 -10 -8 -7 -7 -7 -7 -6 -6 -6 -6 -6 -6 -5 -5 -5 -5 -5 -4 -4 -4 -4 -4 -4 -3 -3 -2 -2 -2 -1 ------- Run | Yrd Mat Sub Mat Fac Low Low Dat Pro Fac Low Low Zio Dee Pro Fac Upp Upp War Pro Fac Ext Cet Arc Hub Res Qua Res Tes Sec Acc Traps Triggered 20 | . 7 1 . 2 . . . . . . . . . . 6 . . 1 . 2 . . . . . . . . . 1 Indirectly . | . . . . . . . . . . . . . . . . . . . . . . . . . . . . . . . Trap Hack Attempts 120 | . . . . . . . . . . . . . . . . . . . . . . . . 16 39 65 . . . . Triggered 1 | . . . . . . . . . . . . . . . . . . . . . . . . . 1 . . . . . Disarmed 7 | . . . . 6 . . . . . . . . . . . . . . . . . . . . . 1 . . . . Reprogrammed 30 | . . . . 6 . . . . 6 . . . . . . . . . . . . . . 2 5 5 6 . . . Reused 24 | . . . . 2 . . . . 1 . . . . . . 9 8 . . . . . . 2 . 1 1 . . . Traps Extracted 7 | . . . . . . . . . . . . . . . . 1 1 . . . . . . . 5 . . . . . Installed 20 | . . . . . . . . . . . . . . . . 11 9 . . . . . . . . . . . . . Triggered 56 | . . . . 2 1 . . . 1 . . . . . . 9 8 31 . . . . . 2 . 1 1 . . . Most Traps Carried 6 | . . . . . . . . . . . . . . . . 6 6 4 . . . . . . 5 5 . . . . Objects Rigged 13 | . . . . 7 . . . . . . . . . . 2 . . . . . . . . . . . . . . 4 Exploded 5 | . . . . 4 . . . . . . . . . . . . . . . . . . . . . . . . . 1 Machines | -11 -10 -10 -8 -7 -7 -7 -7 -6 -6 -6 -6 -6 -6 -5 -5 -5 -5 -5 -4 -4 -4 -4 -4 -4 -3 -3 -2 -2 -2 -1 ---------- Run | Yrd Mat Sub Mat Fac Low Low Dat Pro Fac Low Low Zio Dee Pro Fac Upp Upp War Pro Fac Ext Cet Arc Hub Res Qua Res Tes Sec Acc Machines Disabled 219 | . 11 1 1 9 . 2 . . 20 . . 1 . . 79 . . 1 . 18 6 1 . 45 1 3 . 7 7 6 Max in Single Turn 22 | . 2 1 1 6 . . . . 3 . . 1 . . 8 . . 1 . 5 1 1 . 22 1 1 . 1 1 1 Garrison Access 13 | . . . . . . . . . 3 . . . . . 3 . . . . 1 . . . . 2 1 . 1 . 2 Network Hub 4 | . . . . . . . . . . . . . . . . . . . . . . . . 4 . . . . . . Energy Cycler 2 | . . . . . . . . . . . . . . . . . . . . . 1 . . . . . . . . 1 Machines Repaired . | . . . . . . . . . . . . . . . . . . . . . . . . . . . . . . . Machines Dismantled . | . . . . . . . . . . . . . . . . . . . . . . . . . . . . . . . Machines Sabotaged . | . . . . . . . . . . . . . . . . . . . . . . . . . . . . . . . Overloaded Fab Kills . | . . . . . . . . . . . . . . . . . . . . . . . . . . . . . . . Hacking | -11 -10 -10 -8 -7 -7 -7 -7 -6 -6 -6 -6 -6 -6 -5 -5 -5 -5 -5 -4 -4 -4 -4 -4 -4 -3 -3 -2 -2 -2 -1 --------- Run | Yrd Mat Sub Mat Fac Low Low Dat Pro Fac Low Low Zio Dee Pro Fac Upp Upp War Pro Fac Ext Cet Arc Hub Res Qua Res Tes Sec Acc Machines Accessed 165 | . 9 2 10 21 . 2 3 . 24 2 . . . . 14 1 2 2 . 12 2 1 1 6 9 8 2 9 8 15 Terminals 98 | . 7 . 7 10 . 1 . . 15 1 . . . . 7 . . . . 7 2 1 . 5 5 6 2 7 8 7 Fabricators 18 | . . . . 5 . . . . 4 . . . . . 3 . . . . 2 . . . . . . . 1 . 3 Repair Stations 2 | . . . . . . . . . . . . . . . . . . . . . . . . . . . . . . 2 Recycling Units 10 | . 2 . 1 3 . . . . 2 . . . . . 1 . . . . 1 . . . . . . . . . . Scanalyzers 8 | . . . 2 1 . . . . . . . . . . . . . . . 1 . . . . 2 1 . . . 1 Garrison Access 16 | . . . . 2 . . . . 3 . . . . . 3 . . . . 1 . . . 1 2 1 . 1 . 2 Total Hacks 651 | . 35 6 55 112 . 4 19 . 86 4 . . . . 41 1 7 3 . 34 7 2 4 13 21 34 18 36 39 70 Successful 377 | . 19 6 41 64 . 4 19 . 49 4 . . . . 22 1 7 3 . 19 3 1 4 5 9 12 7 24 17 37 Failed 274 | . 16 . 14 48 . . . . 37 . . . . . 19 . . . . 15 4 1 . 8 12 22 11 12 22 33 Catastrophic 42 | . 1 . 3 9 . . . . 5 . . . . . 3 . . . . . . 1 . 1 3 3 2 3 5 3 Database Lockouts . | . . . . . . . . . . . . . . . . . . . . . . . . . . . . . . . Manual 308 | . 22 1 28 62 . . . . 46 . . 1 . . 18 . . 1 . 14 2 . . 7 7 20 8 27 17 27 Terminals 423 | . 28 . 35 69 . 3 . . 58 3 . . . . 21 . . . . 18 7 2 . 10 12 29 18 30 39 41 Fabricators 72 | . . . . 26 . . . . 14 . . . . . 11 . . . . 6 . . . . . . . 4 . 11 Repair Stations 8 | . . . . . . . . . . . . . . . . . . . . . . . . . . . . . . 8 Recycling Units 30 | . 7 . 5 7 . . . . 6 . . . . . 3 . . . . 2 . . . . . . . . . . Scanalyzers 38 | . . . 15 6 . . . . . . . . . . . . . . . 4 . . . . 4 4 . . . 5 Garrison Access 38 | . . . . 4 . . . . 8 . . . . . 6 . . . . 4 . . . 3 5 1 . 2 . 5 Terminal Hacks 176 | . 7 6 15 30 . 4 19 . 22 4 . . . . 6 1 7 3 . 3 2 1 4 . 4 6 4 10 9 9 Record 28 | . . 5 . . . 3 4 . . 3 . . . . . . 6 2 . . . . 4 . . 1 . . . . Part Schematic 21 | . . . 2 4 . . 8 . 3 . . . . . . . . . . 1 . . . . 1 . . . 1 1 Robot Schematic 10 | . . . . 5 . . 4 . 1 . . . . . . . . . . . . . . . . . . . . . Robot Analysis 8 | . 2 . 2 . . . . . 2 . . . . . 2 . . . . . . . . . . . . . . . Prototype ID Bank 17 | . 3 . 1 2 . . 3 . 1 . . . . . 1 . . . . . . . . . 1 1 . 2 . 2 Open Door 9 | . . . . . . 1 . . . 1 . . . . . 1 1 1 . . . 1 . . 1 1 . . 1 . Branch Access Points 5 | . . . . 1 . . . . 1 . . . . . . . . . . . . . . . . . 1 1 . 1 Machine Index 5 | . . . . 1 . . . . . . . . . . . . . . . . . . . . 1 1 1 . . 1 Terminal Index 2 | . . . 1 . . . . . 1 . . . . . . . . . . . . . . . . . . . . . Fabricator Index 1 | . . . . . . . . . 1 . . . . . . . . . . . . . . . . . . . . . Garrison Index 2 | . . . 1 . . . . . 1 . . . . . . . . . . . . . . . . . . . . . Alert Level 14 | . 1 . 1 2 . . . . 2 . . . . . 1 . . . . 1 1 . . . . . . 2 2 1 Unreport Threat 22 | . . . 4 3 . . . . 5 . . . . . 1 . . . . . . . . . . . . 5 4 . Locate Traps 14 | . . . 2 3 . . . . 2 . . . . . 1 . . . . 1 1 . . . . 1 1 . 1 1 Disarm Traps 1 | . . . . 1 . . . . . . . . . . . . . . . . . . . . . . . . . . Reprogram Traps 3 | . . . . 1 . . . . 1 . . . . . . . . . . . . . . . . . 1 . . . Security Status 1 | . . . . . . . . . . . . . . . . . . . . . . . . . . . . . . 1 Recall Investigation 3 | . . . . 3 . . . . . . . . . . . . . . . . . . . . . . . . . . Recall Extermination 3 | . . . . 2 . . . . 1 . . . . . . . . . . . . . . . . . . . . . Registered Components 1 | . 1 . . . . . . . . . . . . . . . . . . . . . . . . . . . . . Zone Layout 5 | . . . 1 2 . . . . . . . . . . . . . . . . . . . . . 1 . . . 1 Derelict Proto ID Bank 1 | . . 1 . . . . . . . . . . . . . . . . . . . . . . . . . . . . Fabricator Hacks 32 | . . . . 10 . . . . 6 . . . . . 5 . . . . 4 . . . . . . . 2 . 5 Network Status 4 | . . . . 1 . . . . . . . . . . 2 . . . . . . . . . . . . 1 . . Load Schematic 13 | . . . . 4 . . . . 3 . . . . . 1 . . . . 2 . . . . . . . . . 3 Build 15 | . . . . 5 . . . . 3 . . . . . 2 . . . . 2 . . . . . . . 1 . 2 Repair Station Hacks 5 | . . . . . . . . . . . . . . . . . . . . . . . . . . . . . . 5 Scan Component 3 | . . . . . . . . . . . . . . . . . . . . . . . . . . . . . . 3 Repair 2 | . . . . . . . . . . . . . . . . . . . . . . . . . . . . . . 2 Recycling Unit Hacks 2 | . . . . 1 . . . . 1 . . . . . . . . . . . . . . . . . . . . . Report Inventory 1 | . . . . 1 . . . . . . . . . . . . . . . . . . . . . . . . . . Retrieve Components 1 | . . . . . . . . . 1 . . . . . . . . . . . . . . . . . . . . . Scanalyzer 24 | . . . 15 3 . . . . . . . . . . . . . . . 4 . . . . . . . . . 2 Insert Component 12 | . . . 7 2 . . . . . . . . . . . . . . . 2 . . . . . . . . . 1 Analyze 12 | . . . 8 1 . . . . . . . . . . . . . . . 2 . . . . . . . . . 1 Garrison Access Hacks 11 | . . . . . . . . . 2 . . . . . 3 . . . . . . . . . 2 1 . 1 . 2 Seal Access 11 | . . . . . . . . . 2 . . . . . 3 . . . . . . . . . 2 1 . 1 . 2 Unauthorized Hacks 127 | . 12 . 11 20 . . . . 18 . . . . . 8 . . . . 8 1 . . 5 3 5 3 11 8 14 Terminals 97 | . 10 . 8 10 . . . . 12 . . . . . 5 . . . . 6 1 . . 5 1 5 3 10 8 13 Track 23 | . 4 . 1 1 . . . . 2 . . . . . 1 . . . . 1 . . . 1 . 1 1 3 4 3 Assimilate 8 | . . . . 1 . . . . 2 . . . . . . . . . . . . . . 2 . . 1 2 . . Botnet 56 | . 5 . 7 7 . . . . 8 . . . . . 3 . . . . 3 1 . . 2 1 3 1 4 4 7 Detonate 4 | . . . . 1 . . . . . . . . . . 1 . . . . . . . . . . . . . . 2 Disrupt 3 | . . . . . . . . . . . . . . . . . . . . 2 . . . . . . . . . 1 Operators 3 | . 1 . . . . . . . . . . . . . . . . . . . . . . . . 1 . 1 . . Fabricators 12 | . . . . 4 . . . . 3 . . . . . 2 . . . . 1 . . . . . . . 1 . 1 Report 2 | . . . . 1 . . . . . . . . . . 1 . . . . . . . . . . . . . . . Prioritize 10 | . . . . 3 . . . . 3 . . . . . 1 . . . . 1 . . . . . . . 1 . 1 Repair Stations . | . . . . . . . . . . . . . . . . . . . . . . . . . . . . . . . Recycling Units 15 | . 2 . 3 5 . . . . 3 . . . . . 1 . . . . 1 . . . . . . . . . . Reject 5 | . 1 . 1 2 . . . . 1 . . . . . . . . . . . . . . . . . . . . . Recyclers 2 | . . . 1 1 . . . . . . . . . . . . . . . . . . . . . . . . . . Mask 8 | . 1 . 1 2 . . . . 2 . . . . . 1 . . . . 1 . . . . . . . . . . Scanalyzers 2 | . . . . . . . . . . . . . . . . . . . . . . . . . 2 . . . . . Extract 2 | . . . . . . . . . . . . . . . . . . . . . . . . . 2 . . . . . Garrison Access 1 | . . . . 1 . . . . . . . . . . . . . . . . . . . . . . . . . . Reprogram 1 | . . . . 1 . . . . . . . . . . . . . . . . . . . . . . . . . . Data Cores Recovered 3 | . . . . 2 . . . . . . . . . . . . . . . . . . . . . . . 1 . . Used . | . . . . . . . . . . . . . . . . . . . . . . . . . . . . . . . Hacking Detections 120 | . 8 . 8 17 . 1 . . 22 1 . . . . 12 . . . . 12 1 1 . 4 4 5 1 4 7 12 Full Trace Events 38 | . 4 . . 6 . 1 . . 7 . . . . . 6 . . . . 6 1 1 . 2 . . . . . 4 Feedback Events 5 | . 1 . . . . . . . 2 . . . . . 1 . . . . . . . . 1 . . . . . . Corruption 5 | . 1 . . . . . . . 2 . . . . . 1 . . . . . . . . 1 . . . . . . Feedback Blocked 2 | . . . . . . . . . 2 . . . . . . . . . . . . . . . . . . . . . Robot Schematics Acquired 11 | . . . . 5 . . 4 . 1 . . 1 . . . . . . . . . . . . . . . . . . Robots Built 13 | . . . . 9 . . . . 3 . . . . . 1 . . . . . . . . . . . . . . . Authchips . | . . . . . . . . . . . . . . . . . . . . . . . . . . . . . . . Time 388 | . . . . 203 . . . . 33 . . . . . 152 . . . . . . . . . . . . . . . Total Robot Build Rating 43 | . . . . 26 . . . . 12 . . . . . 5 . . . . . . . . . . . . . . . Part Schematics Acquired 51 | . . . 9 5 . . 8 . 3 . . 15 . . . . . . . 2 . . . . 6 . . . 1 2 Parts Built 10 | . . . . . . . . . 2 . . . . . 2 . . . . 2 . . . . . . . 2 . 2 Authchips . | . . . . . . . . . . . . . . . . . . . . . . . . . . . . . . . Time 436 | . . . . . . . . . 76 . . . . . 53 . . . . 84 . . . . . . . 139 . 84 Total Part Build Rating 66 | . . . . . . . . . 10 . . . . . 12 . . . . 14 . . . . . . . 18 . 12 Parts Repaired 2 | . . . . . . . . . . . . . . . . . . . . . . . . . . . . . . 2 Time 62 | . . . . . . . . . . . . . . . . . . . . . . . . . . . . . . 62 Parts Recycled . | . . . . . . . . . . . . . . . . . . . . . . . . . . . . . . . Recycled Matter . | . . . . . . . . . . . . . . . . . . . . . . . . . . . . . . . Retrieved Matter . | . . . . . . . . . . . . . . . . . . . . . . . . . . . . . . . Retrieved Components 7 | . . . . . . . . . 7 . . . . . . . . . . . . . . . . . . . . . Parts Scanalyzed 12 | . . . 7 2 . . . . . . . . . . . . . . . 2 . . . . . . . . . 1 Part Schematics Acquired 10 | . . . 7 1 . . . . . . . . . . . . . . . 1 . . . . . . . . . 1 Parts Damaged . | . . . . . . . . . . . . . . . . . . . . . . . . . . . . . . . Bothacking | -11 -10 -10 -8 -7 -7 -7 -7 -6 -6 -6 -6 -6 -6 -5 -5 -5 -5 -5 -4 -4 -4 -4 -4 -4 -3 -3 -2 -2 -2 -1 ------------ Run | Yrd Mat Sub Mat Fac Low Low Dat Pro Fac Low Low Zio Dee Pro Fac Upp Upp War Pro Fac Ext Cet Arc Hub Res Qua Res Tes Sec Acc Used RIF Installer . | . . . . . . . . . . . . . . . . . . . . . . . . . . . . . . . Robots Hacked 1 | . . . . 1 . . . . . . . . . . . . . . . . . . . . . . . . . . Non-combat 1 | . . . . 1 . . . . . . . . . . . . . . . . . . . . . . . . . . Combat . | . . . . . . . . . . . . . . . . . . . . . . . . . . . . . . . Robot Hacks Applied 1 | . . . . 1 . . . . . . . . . . . . . . . . . . . . . . . . . . no_distress 1 | . . . . 1 . . . . . . . . . . . . . . . . . . . . . . . . . . Relay Couplers Released 6 | . . . . . . . . . 3 . . . . . 1 . . . . 1 . . . . . . . . . 1 Machine Destruction 4 | . . . . . . . . . 1 . . . . . 1 . . . . 1 . . . . . . . . . 1 Programmers 2 | . . . . . . . . . 2 . . . . . . . . . . . . . . . . . . . . . Fabnet Peak Effective % . | . . . . . . . . . . . . . . . . . . . . . . . . . . . . . . . Robots Rewired 15 | . . . . . . 1 . . 1 . . . . . . . . 5 . . 8 . . . . . . . . . Allies Hacked 4 | . . . . 1 . . . . . . . . . . . . . . . . 1 . . . . . 1 1 . . Hacks Repelled . | . . . . . . . . . . . . . . . . . . . . . . . . . . . . . . . Allies | -11 -10 -10 -8 -7 -7 -7 -7 -6 -6 -6 -6 -6 -6 -5 -5 -5 -5 -5 -4 -4 -4 -4 -4 -4 -3 -3 -2 -2 -2 -1 -------- Run | Yrd Mat Sub Mat Fac Low Low Dat Pro Fac Low Low Zio Dee Pro Fac Upp Upp War Pro Fac Ext Cet Arc Hub Res Qua Res Tes Sec Acc Total Allies 108 | . . . . 15 . 1 . . 6 . . 2 . . 1 . . 5 . 3 18 . . 2 . . 1 2 . 52 Largest Group 13 | . . . . 10 9 9 8 8 11 3 . 2 2 2 1 . . 5 . 3 8 . . 2 . . 1 2 . 13 Highest-Rated Group 415 | . . . . 215 170 187 187 187 277 60 . 59 59 59 18 . . 255 . 138 415 . . 20 . . 10 71 . 177 Highest-Rated Ally 159 | . . . . 40 40 49 49 49 90 20 . 31 31 31 18 . . 65 . 46 159 . . 10 . . 10 45 . 15 Total Orders 129 | . . . . 17 43 27 1 7 28 . . . . . . . . 5 . . . . . . . . . 1 . . STAY 67 | . . . . 8 21 15 1 3 13 . . . . . . . . 5 . . . . . . . . . 1 . . FOLLOW 45 | . . . . 4 14 10 . 2 15 . . . . . . . . . . . . . . . . . . . . . AID 7 | . . . . 2 3 2 . . . . . . . . . . . . . . . . . . . . . . . . DROP 3 | . . . . 1 1 . . 1 . . . . . . . . . . . . . . . . . . . . . . PICKUP 6 | . . . . 2 3 . . 1 . . . . . . . . . . . . . . . . . . . . . . COLLECT 1 | . . . . . 1 . . . . . . . . . . . . . . . . . . . . . . . . . Ally Attacks 513 | . . . . 51 23 31 . . 36 17 . . 38 10 . . . 32 . 15 82 . . . . . . . . 178 Total Damage 10059 | . . . . 576 293 499 . . 845 433 . . 472 63 . . . 719 . 306 2978 . . . . . . . . 2875 Kills 68 | . . . . 5 3 5 . . 8 2 . . 8 . . . . 3 . . 16 . . . . . . . . 18 Allies Corrupted 2 | . . . . . . . . . . . . . . . . . . . . . 1 . . . . . 1 . . . Allies Melted . | . . . . . . . . . . . . . . . . . . . . . . . . . . . . . . . Intel | -11 -10 -10 -8 -7 -7 -7 -7 -6 -6 -6 -6 -6 -6 -5 -5 -5 -5 -5 -4 -4 -4 -4 -4 -4 -3 -3 -2 -2 -2 -1 ------- Run | Yrd Mat Sub Mat Fac Low Low Dat Pro Fac Low Low Zio Dee Pro Fac Upp Upp War Pro Fac Ext Cet Arc Hub Res Qua Res Tes Sec Acc Robot Analysis Total 8 | . 2 . 2 . . . . . 2 . . . . . 2 . . . . . . . . . . . . . . . Derelict Logs Recovered 20 | . . 1 . . 3 1 . 2 . 2 2 . . 2 . 1 3 . 3 . . . . . . . . . . . Drone Launches . | . . . . . . . . . . . . . . . . . . . . . . . . . . . . . . . Drone Recoveries . | . . . . . . . . . . . . . . . . . . . . . . . . . . . . . . . Exploration | -11 -10 -10 -8 -7 -7 -7 -7 -6 -6 -6 -6 -6 -6 -5 -5 -5 -5 -5 -4 -4 -4 -4 -4 -4 -3 -3 -2 -2 -2 -1 ------------- Run | Yrd Mat Sub Mat Fac Low Low Dat Pro Fac Low Low Zio Dee Pro Fac Upp Upp War Pro Fac Ext Cet Arc Hub Res Qua Res Tes Sec Acc Turns Passed 31334 | 161 2440 3007 1357 1889 1233 859 30 692 2371 579 340 502 1392 395 2035 1290 811 1105 159 998 464 73 2747 636 419 456 304 374 728 1488 Spaces Moved 46690 | 98 1273 2408 1321 2868 1860 1517 83 1398 4222 1289 1006 1289 2904 748 3484 2392 2004 1251 425 2589 578 95 391 1049 721 978 646 886 1444 3473 Core 208 | 11 5 . . . . 97 . . 21 . . . 1 . 1 . . 70 . . 2 . . . . . . . . . Treads . | . . . . . . . . . . . . . . . . . . . . . . . . . . . . . . . Legs 1295 | 87 1208 . . . . . . . . . . . . . . . . . . . . . . . . . . . . . Wheels 2772 | . 60 2408 304 . . . . . . . . . . . . . . . . . . . . . . . . . . . Hover 3191 | . . . . . . . . . . . . . 400 748 2043 . . . . . . . . . . . . . . . Flight 39224 | . . . 1017 2868 1860 1420 83 1398 4201 1289 1006 1289 2503 . 1440 2392 2004 1181 425 2589 576 95 391 1049 721 978 646 886 1444 3473 Fastest Speed 10 | 50 50 80 40 23 23 23 24 24 23 23 23 23 12 20 16 17 17 14 28 14 14 14 14 14 14 10 10 10 10 10 Average Speed 33 | 114 143 104 55 35 23 30 24 24 25 23 23 26 26 39 32 32 28 27 28 20 25 16 25 23 24 19 17 20 14 13 Slowest Speed 300 | 120 300 125 125 275 103 150 24 24 150 23 23 98 200 40 200 34 34 175 28 28 250 28 28 28 28 80 86 80 20 83 Overloaded Moves . | . . . . . . . . . . . . . . . . . . . . . . . . . . . . . . . Propulsion Burnouts . | . . . . . . . . . . . . . . . . . . . . . . . . . . . . . . . Robots Hopped 83 | . . . 3 2 1 4 . . 10 . . . . . 5 . . . . 28 8 2 . 2 1 2 . 5 3 7 Cave-ins Triggered 1 | . . . . 1 . . . . . . . . . . . . . . . . . . . . . . . . . . Exploration Rate (%) 73 | 5 99 95 63 45 92 97 71 88 85 97 96 82 91 85 61 97 97 97 61 45 72 75 86 77 23 86 22 64 73 59 Regions Visited 30 Branch Regions 21 Pre-discovered Areas 6 | . . . . . . . 1 . . 2 . . . . . . 1 . 2 . . . . . . . . . . . Known Exits Taken 28 | . . 1 1 1 1 1 1 1 1 1 1 1 1 1 1 1 1 1 1 1 1 1 1 1 1 1 1 1 1 . Unknown Exits Taken 2 | 1 1 . . . . . . . . . . . . . . . . . . . . . . . . . . . . . Scrap Searched 30 | . . 1 . . 4 5 . 2 . 5 4 3 . . . 3 1 . 2 . . . . . . . . . . . Spaces Dug 508 | . . . 9 40 6 2 . 4 49 . . 3 27 . 139 5 8 5 . 43 . . . 14 15 5 5 7 23 99 Terrain Destroyed 3124 | . 198 10 28 149 10 2 . 4 247 . . 3 66 19 508 11 17 21 . 293 7 . . 673 15 5 5 100 105 628 Melee 194 | . . . 9 24 6 2 . 4 29 . . 3 3 . 12 1 1 5 . 27 . . . 9 14 3 5 7 17 13 Projectile 202 | . . 10 . . . . . . . . . . 29 7 46 10 7 . . 6 . . . 6 1 2 . 1 14 63 AOE 2728 | . 198 . 19 125 4 . . . 218 . . . 34 12 450 . 9 16 . 260 7 . . 658 . . . 92 74 552 Terrain Rammed . | . . . . . . . . . . . . . . . . . . . . . . . . . . . . . . . Walls Destroyed . | . . . . . . . . . . . . . . . . . . . . . . . . . . . . . . . Machines Disabled . | . . . . . . . . . . . . . . . . . . . . . . . . . . . . . . . Actions | -11 -10 -10 -8 -7 -7 -7 -7 -6 -6 -6 -6 -6 -6 -5 -5 -5 -5 -5 -4 -4 -4 -4 -4 -4 -3 -3 -2 -2 -2 -1 --------- Run | Yrd Mat Sub Mat Fac Low Low Dat Pro Fac Low Low Zio Dee Pro Fac Upp Upp War Pro Fac Ext Cet Arc Hub Res Qua Res Tes Sec Acc Total 59217 | 124 1712 2721 1723 3587 2584 1891 92 1734 5202 1508 1085 1427 3478 820 4012 2809 2208 1959 445 2910 811 147 3000 1335 885 1203 770 1010 1767 4258 Wait 8704 | 9 282 163 173 519 596 301 10 305 523 132 42 113 396 41 180 282 143 599 11 188 91 52 2553 162 46 87 53 62 119 471 Move 46501 | 97 1272 2407 1314 2863 1857 1508 82 1397 4202 1288 1005 1288 2903 747 3474 2391 2003 1250 424 2534 564 91 390 1044 718 973 645 875 1438 3457 Hop 73 | . . . 3 2 1 4 . . 8 . . . . . 4 . . . . 26 5 1 . 2 1 2 . 5 2 7 Pick Up 141 | 1 5 2 15 12 11 . . . 8 . . . 21 . 9 5 4 1 . 5 . . 5 . 2 3 . 1 12 19 Fast Attach 265 | 6 19 9 15 13 6 8 . 1 17 4 2 2 34 . 18 4 . 17 . 13 4 . . 2 . 11 6 10 18 26 Attach 24 | . . . 3 3 . . . . 1 . . . 4 . 1 1 . . . 1 . . 1 . . 1 . . 2 6 Detach 43 | . 1 2 7 3 1 . . . 5 2 1 . 7 . 3 . . . . 4 . . . . . 2 . . 2 3 Swap 249 | 2 10 13 2 12 8 2 . . 61 9 6 2 4 . 25 13 14 2 1 6 3 2 2 13 5 6 5 3 2 16 Drop 356 | . 16 13 23 20 13 9 . 1 23 2 . 2 54 . 23 8 4 20 . 17 4 . 5 2 3 17 6 12 20 39 Fire 756 | 9 93 83 18 5 20 3 . 2 61 . 16 . 14 11 151 32 10 16 9 37 8 1 . 13 7 2 . 8 22 105 Melee 1040 | . . . 106 88 35 14 . 15 164 45 7 20 28 5 54 15 10 9 . 48 60 . 24 49 41 25 33 24 83 38 Ram . | . . . . . . . . . . . . . . . . . . . . . . . . . . . . . . . Kick . | . . . . . . . . . . . . . . . . . . . . . . . . . . . . . . . Crush . | . . . . . . . . . . . . . . . . . . . . . . . . . . . . . . . Escape Stasis 17 | . . . . . . . . . 1 . . . . . 2 . . . . . 12 . . . . . . 1 . 1 Rewire 51 | . . . . . . 13 . . 2 . . . . . . . 1 34 . . . . . . . . . 1 . . Trap 140 | . . . . . . . . . . . . . . . . 11 9 . . . . . . 16 39 65 . . . . Miscellaneous 857 | . 14 29 44 47 36 29 . 13 126 26 6 . 13 16 68 47 10 11 . 31 60 . 20 32 23 9 22 8 47 70 Route ------- -11/Scrapyard -10/Materials (discovered 5 exits: [*Mat x3] / [*Min] / *Sub) -10/Subcaves (discovered 3 exits: *Mat x2 / *Rec) -8/Materials -7/Factory (discovered 5 exits: *Fac x2 / Sto / *Low x2) -7/Lower Caves -7/Lower Caves (discovered 2 exits: *Fac / *Dat) -7/Data Miner -6/Proximity Caves -6/Factory (discovered 6 exits: *Fac x4 / *Low x2) -6/Lower Caves -6/Lower Caves (discovered 2 exits: *Fac / *Zio) -6/Zion (discovered 2 exits: *Dee / *Pro) -6/Deep Caves -5/Proximity Caves -5/Factory (discovered 3 exits: *Fac x2 / *Upp) -5/Upper Caves -5/Upper Caves (discovered 2 exits: *Fac / *War) -5/Warlord -4/Proximity Caves -4/Factory (discovered 7 exits: *Res x3 / *Upp x2 / *Ext x2) -4/Extension (discovered 3 exits: *Res x2 / *Cet) -4/Cetus -4/Archives (discovered 3 exits: *Res / *Hub x2) -4/Hub_04(d) (discovered 4 exits: *Res x4) -3/Research (discovered 3 exits: *Res / Arm / *Qua) -3/Quarantine -2/Research (discovered 4 exits: *Acc x2 / *Tes x2) -2/Testing (discovered 2 exits: *Acc / *Sec) -2/Section 7 -1/Access (discovered 2 exits: *Sur / Com) Tau Ceti IV Orbit History --------- Turn | Location | Event 1 | -11/Scrapyard | Upgraded with Propulsion slot (x1) 1 | -11/Scrapyard | Upgraded with Utility slot (x1) 1 | -11/Scrapyard | Upgraded with Weapon slot (x1) 8 | -11/Scrapyard | Discovered new exit (range 15) 162 | -11/Scrapyard | Entered Materials 313 | -10/Materials | Build established: Mutant 446 | -10/Materials | Discovered new exit (range 3) 891 | -10/Materials | Discovered new exit (range 8) 1018 | -10/Materials | Reached level 2 1118 | -10/Materials | Discovered new exit (range 6) 1187 | -10/Materials | Upgraded with Utility slot (x1) 1187 | -10/Materials | Upgraded with Weapon slot (x1) 1486 | -10/Materials | Discovered new exit (range 12) 1494 | -10/Materials | Build established: Tank 2281 | -10/Materials | Discovered new exit (range 9) 2327 | -10/Materials | Build established: Scavenger-Tank 2445 | -10/Materials | Reached level 3 2602 | -10/Materials | Entered Subcaves 3075 | -10/Subcaves | Visited 4L-MR0's lab 3279 | -10/Subcaves | Visited Clippyterm 3281 | -10/Subcaves | Identified exit to Materials 3281 | -10/Subcaves | Identified exit to Recycling 3512 | -10/Subcaves | Reached level 4 3562 | -10/Subcaves | Ambushed by Subdwellers from Twisted Machinery 4220 | -10/Subcaves | Ambushed by Subdweller buried in earth 4227 | -10/Subcaves | Core integrity fell below 50% 4479 | -10/Subcaves | A swath of the cavern ceiling suddenly collapsed 4539 | -10/Subcaves | Build established: Subdweller-Tank 4545 | -10/Subcaves | Shifting Twisted Machinery released Battle Rifle 4553 | -10/Subcaves | Shifting Twisted Machinery released Sub. Optics 5160 | -10/Subcaves | A swath of the cavern ceiling suddenly collapsed 5544 | -10/Subcaves | Found Flightbrick 5609 | -10/Subcaves | Entered Materials 5611 | -8/Materials | Reached level 5 5823 | -8/Materials | Build established: Tank 5983 | -8/Materials | Upgraded with Propulsion slot (x2) 6028 | -8/Materials | Attached Flightbrick, gained temporary slots: Utility x3 6212 | -8/Materials | Reached level 6 6244 | -8/Materials | Core integrity fell below 50% 6268 | -8/Materials | Upgraded with Utility slot (x1) 6372 | -8/Materials | Build established: Hacker-Gladiator 6560 | -8/Materials | Discovered new exit (range 9) 6584 | -8/Materials | Identified exit to Factory 6611 | -8/Materials | Reached level 7 6966 | -8/Materials | Entered Factory 6967 | -7/Factory | Identified exit to Storage 6968 | -7/Factory | Reached level 8 6976 | -7/Factory | Identified exit to Lower Caves 7010 | -7/Factory | Build established: Hacker-Scout 7072 | -7/Factory | Upgraded with Utility slot (x1) 7252 | -7/Factory | Discovered new exit (range 5) 7253 | -7/Factory | Identified exit to Factory 7362 | -7/Factory | Build established: Hacker-Ninja 7409 | -7/Factory | Reached level 9 7434 | -7/Factory | Crushed by falling debris 7472 | -7/Factory | Allied Derelicts emerged from ambush trap array 7566 | -7/Factory | Fabricated M-28 Smith (x1) 7738 | -7/Factory | Discovered exit to Factory (range 10) 7753 | -7/Factory | Reached level 10 7856 | -7/Factory | Fabricated R-06 Scavenger (x1) 8008 | -7/Factory | Fabricated G-47 Trooper (x3) 8028 | -7/Factory | Fabricated I-36 Angel (x1) 8270 | -7/Factory | Cargo convoy interrupted 8272 | -7/Factory | Garrison activated, responded to threat 8290 | -7/Factory | Core integrity fell below 50% 8330 | -7/Factory | Reached level 11 8358 | -7/Factory | Upgraded with Propulsion slot (x1) 8498 | -7/Factory | Fabricated G-47 Trooper (x3) 8854 | -7/Factory | Build established: Commander-Sprinter 8855 | -7/Factory | Entered Lower Caves 8855 | -7/Lower Caves | Accompanied by 9 allies 8857 | -7/Lower Caves | Reached level 12 8861 | -7/Lower Caves | Identified exit to Lower Caves 9045 | -7/Lower Caves | Spotted B-75 Beast 9355 | -7/Lower Caves | Destroyed B-75 Beast 9440 | -7/Lower Caves | Learned Factory emergency access door positions 9549 | -7/Lower Caves | Attracted the attention of an 0b10 outpost 9613 | -7/Lower Caves | Core integrity fell below 20% 9646 | -7/Lower Caves | Reached level 13 9803 | -7/Lower Caves | Upgraded with Weapon slot (x1) 9805 | -7/Lower Caves | Upgraded with Utility slot (x2) 9942 | -7/Lower Caves | Learned location of 1 exit from Factory 10088 | -7/Lower Caves | Entered another Lower Caves area 10088 | -7/Lower Caves | Accompanied by 9 allies 10090 | -7/Lower Caves | Reached level 14 10195 | -7/Lower Caves | Spotted B-75 Beast 10230 | -7/Lower Caves | Allies destroyed B-75 Beast 10433 | -7/Lower Caves | Discovered exit to Factory (range 10) 10455 | -7/Lower Caves | Build established: Commander-Scout 10501 | -7/Lower Caves | Encountered a Warlord checkpoint 10509 | -7/Lower Caves | Learned Factory terminal intel 10558 | -7/Lower Caves | Discovered new exit (range 7) 10560 | -7/Lower Caves | Identified exit to Data Miner 10947 | -7/Lower Caves | Entered Data Miner 10947 | -7/Data Miner | Accompanied by 8 allies 10947 | -7/Data Miner | Discovered new exit (range 6) 10950 | -7/Data Miner | Identified exit to Proximity Caves 10963 | -7/Data Miner | Met Data Miner 10968 | -7/Data Miner | Learned location of Section 7 (-2) 10968 | -7/Data Miner | Acquired the access code to Warlord's prototype stash 10971 | -7/Data Miner | Received God Mode back door access code from Data Miner 10977 | -7/Data Miner | Entered Proximity Caves 10977 | -6/Proximity Caves | Accompanied by 8 allies 10979 | -6/Proximity Caves | Reached level 15 10980 | -6/Proximity Caves | Learned 12 Factory zone layouts 11221 | -6/Proximity Caves | P-60 Hacker assimilated allied QP-IPN(S) 11268 | -6/Proximity Caves | Attracted the attention of an 0b10 checkpoint 11323 | -6/Proximity Caves | Discovered exit to Factory (range 18) 11669 | -6/Proximity Caves | Entered Factory 11669 | -6/Factory | Accompanied by 8 allies 11670 | -6/Factory | Identified exit to Lower Caves 11671 | -6/Factory | Identified exit to Factory 11671 | -6/Factory | Reached level 16 11674 | -6/Factory | Loaded intel: 24 terminal locations 11791 | -6/Factory | Garrison activated, responded to threat 11799 | -6/Factory | Reached level 17 11893 | -6/Factory | Discovered exit to Factory (range 19) 11917 | -6/Factory | Upgraded with Utility slot (x1) 12216 | -6/Factory | Build established: Hacker-Scout 12256 | -6/Factory | Reached level 18 12369 | -6/Factory | First assault squad dispatched 12597 | -6/Factory | Fabricated Biomechanical Wings? 12625 | -6/Factory | Reached level 19 13062 | -6/Factory | Fabricated Biomechanical Wings? 13202 | -6/Factory | Discovered exit to Factory (range 13) 13217 | -6/Factory | Spotted B-75 Beast 13249 | -6/Factory | Discovered exit to Factory (range 19) 13452 | -6/Factory | Reached level 20 13549 | -6/Factory | Fabricated B-48 Gladiator (x3) 13848 | -6/Factory | Build established: Commander-Scout 13885 | -6/Factory | High security lockdown imminent 13931 | -6/Factory | Destroyed 9 combat bots 13965 | -6/Factory | High security lockdown engaged 13982 | -6/Factory | Upgraded with Propulsion slot (x1) 14040 | -6/Factory | Entered Lower Caves 14040 | -6/Lower Caves | Accompanied by 3 allies 14188 | -6/Lower Caves | Build established: Hacker-Scout 14304 | -6/Lower Caves | Discovered new exit (range 11) 14307 | -6/Lower Caves | Identified exit to Lower Caves 14468 | -6/Lower Caves | Reached level 21 14486 | -6/Lower Caves | Learned location of Zion (-6) 14489 | -6/Lower Caves | Learned Factory terminal intel 14556 | -6/Lower Caves | Attracted the attention of an 0b10 base 14593 | -6/Lower Caves | Learned location of Extension (-4) 14593 | -6/Lower Caves | Learned Research trap positions 14593 | -6/Lower Caves | Learned Factory stockpile data 14609 | -6/Lower Caves | Destroyed 7 combat bots 14619 | -6/Lower Caves | Entered another Lower Caves area 14682 | -6/Lower Caves | Learned Factory terminal intel 14785 | -6/Lower Caves | Discovered exit to Factory (range 18) 14818 | -6/Lower Caves | Encountered a Warlord checkpoint 14832 | -6/Lower Caves | Spotted B-75 Beast 14885 | -6/Lower Caves | Upgraded with Utility slot (x1) 14945 | -6/Lower Caves | Discovered new exit (range 3) 14946 | -6/Lower Caves | Identified exit to Zion 14948 | -6/Lower Caves | Learned Factory terminal intel 14959 | -6/Lower Caves | Entered Zion 14960 | -6/Zion | Identified exit to Proximity Caves 14990 | -6/Zion | Gained Derelict followers 15012 | -6/Zion | Received a hallucinogenic algorithm 15031 | -6/Zion | Visited the Megawrench Repair Shop 15194 | -6/Zion | Build established: Derelict-Scout 15264 | -6/Zion | Megawrench repaired 3 parts 15282 | -6/Zion | Discovered new exit (range 5) 15282 | -6/Zion | Saw the warning signs outside the Deep Caves entrance 15283 | -6/Zion | Identified exit to Deep Caves 15461 | -6/Zion | Entered Deep Caves 15461 | -6/Deep Caves | Accompanied by 2 allies 15688 | -6/Deep Caves | Attacked by Z-Imprinter 15697 | -6/Deep Caves | Destroyed Z-Imprinter 15718 | -6/Deep Caves | Found Prototype Device 15718 | -6/Deep Caves | Identified Zio. Metafield Generator 15732 | -6/Deep Caves | Found Prototype Protection 15732 | -6/Deep Caves | Identified Zio. Weapon Casing 15878 | -6/Deep Caves | Z-Facility disabled 16002 | -6/Deep Caves | Found Prototype Protection 16002 | -6/Deep Caves | Identified Zio. Heavy Carapace 16094 | -6/Deep Caves | Discovered new exit (range 7) 16096 | -6/Deep Caves | Identified exit to Proximity Caves 16146 | -6/Deep Caves | Found Surveybot 24 Chip 16147 | -6/Deep Caves | Found Surveybot 24 Scanner 16290 | -6/Deep Caves | Found Zio. Weapon Casing 16329 | -6/Deep Caves | Spotted AG-75351 16333 | -6/Deep Caves | Spotted AG-90915 16853 | -6/Deep Caves | Entered Proximity Caves 16853 | -5/Proximity Caves | Accompanied by 2 allies 16859 | -5/Proximity Caves | Spotter reported a threat 16859 | -5/Proximity Caves | Spotter reported a threat 16886 | -5/Proximity Caves | Build established: Scavenger-Scout 16949 | -5/Proximity Caves | Attracted the attention of an 0b10 checkpoint 17103 | -5/Proximity Caves | Reached level 22 17117 | -5/Proximity Caves | Learned Factory machine intel 17125 | -5/Proximity Caves | Discovered exit to Factory (range 7) 17136 | -5/Proximity Caves | Learned 8 Factory zone layouts 17200 | -5/Proximity Caves | Spotted B-75 Beast 17248 | -5/Proximity Caves | Entered Factory 17249 | -5/Factory | Identified exit to Upper Caves 17252 | -5/Factory | Loaded intel: 263 machine locations 17253 | -5/Factory | Loaded intel: 25 terminal locations 17467 | -5/Factory | Fabricated R-10 Processor (x1) 17548 | -5/Factory | Search patrols dispatched 17662 | -5/Factory | Discovered new exit (range 15) 17669 | -5/Factory | Identified exit to Factory 17945 | -5/Factory | Reached level 23 17958 | -5/Factory | Upgraded with Power slot (x1) 18148 | -5/Factory | First assault squad dispatched 18163 | -5/Factory | Fabricated Field Propulsion Drive (x2) 18741 | -5/Factory | Reached level 24 18847 | -5/Factory | High security lockdown imminent 18927 | -5/Factory | High security lockdown engaged 19253 | -5/Factory | Spotted B-75 Beast 19257 | -5/Factory | Discovered exit to Factory (range 13) 19283 | -5/Factory | Entered Upper Caves 19284 | -5/Upper Caves | Encountered a Warlord checkpoint 19332 | -5/Upper Caves | Attracted the attention of an 0b10 checkpoint 19468 | -5/Upper Caves | Learned 12 Factory zone layouts 19478 | -5/Upper Caves | Spotted B-75 Beast 20056 | -5/Upper Caves | Destroyed B-75 Beast 20163 | -5/Upper Caves | Discovered new exit (range 16) 20306 | -5/Upper Caves | Attracted the attention of an 0b10 outpost 20490 | -5/Upper Caves | Identified exit to Upper Caves 20573 | -5/Upper Caves | Entered another Upper Caves area 20660 | -5/Upper Caves | Discovered exit to Factory (range 16) 20704 | -5/Upper Caves | Learned 4 Factory zone layouts 20769 | -5/Upper Caves | Learned location of 1 exit from Factory 20803 | -5/Upper Caves | Discovered new exit (range 16) 20805 | -5/Upper Caves | Identified exit to Warlord 21176 | -5/Upper Caves | Learned Armory stockpile data 21176 | -5/Upper Caves | Learned Armory garrison access intel 21384 | -5/Upper Caves | Entered Warlord 21397 | -5/Warlord | Discovered new exit (range 9) 21398 | -5/Warlord | Identified exit to Proximity Caves 21432 | -5/Warlord | Visited the Vortex Lab 21444 | -5/Warlord | Reached level 25 21444 | -5/Warlord | Warlord's base attacked by MAIN.C 21630 | -5/Warlord | Met Warlord 21661 | -5/Warlord | Upgraded with Weapon slot (x1) 21683 | -5/Warlord | Found Prototype Energy Gun 21683 | -5/Warlord | Identified Plasma Storm 21696 | -5/Warlord | Attacked by Warlord forces 21698 | -5/Warlord | Spotted OK-652(B) 21698 | -5/Warlord | Spotted BR-ZQC(B) 21716 | -5/Warlord | Destroyed 8 combat bots 21730 | -5/Warlord | Lost 6 allies 21794 | -5/Warlord | Warlord forces counterattacked 21907 | -5/Warlord | Spotted 28-6ZU(g) 22119 | -5/Warlord | Warlord base infiltrated, sounded retreat 22203 | -5/Warlord | Opened Warlord's prototype stash 22213 | -5/Warlord | Found Prototype Device 22213 | -5/Warlord | Identified Thermal Barrier 22215 | -5/Warlord | Found Prototype Processor 22215 | -5/Warlord | Identified Exp. Armor Integrity Analyzer 22230 | -5/Warlord | Found Prototype Reactor 22230 | -5/Warlord | Identified Vortex Chain Reactor 22352 | -5/Warlord | Spotted Executioner 22403 | -5/Warlord | Destroyed Executioner 22446 | -5/Warlord | Destroyed 10 combat bots 22488 | -5/Warlord | Spotted Striker 22489 | -5/Warlord | Entered Proximity Caves 22550 | -4/Proximity Caves | Spotter reported a threat 22574 | -4/Proximity Caves | Destroyed 9 combat bots 22592 | -4/Proximity Caves | Learned location of Testing (-2) 22599 | -4/Proximity Caves | Discovered exit to Factory (range 13) 22648 | -4/Proximity Caves | Entered Factory 22649 | -4/Factory | Identified exit to Research 22649 | -4/Factory | Identified exit to Upper Caves 22650 | -4/Factory | Identified exit to Extension 22650 | -4/Factory | Reached level 26 22652 | -4/Factory | Loaded intel: 28 terminal locations 22680 | -4/Factory | Build established: Hacker-Scout 22924 | -4/Factory | Assembled infested ambush trap array 23049 | -4/Factory | Spotted B-86 Titan 23049 | -4/Factory | Allied Derelicts emerged from ambush trap array 23097 | -4/Factory | Lost 3 allies 23121 | -4/Factory | Spotted B-86 Titan 23148 | -4/Factory | First assault squad dispatched 23284 | -4/Factory | Discovered exit to Research (range 10) 23352 | -4/Factory | Fabricated Lgt. Regenerative Plating? 23383 | -4/Factory | Destroyed 7 combat bots 23454 | -4/Factory | Core integrity fell below 50% 23612 | -4/Factory | Fabricated Adv. Phase Shifter? 23635 | -4/Factory | Reached level 27 23646 | -4/Factory | Entered Extension 23654 | -4/Extension | Rescued a captive Derelict 23659 | -4/Extension | Rescued a captive Derelict 23660 | -4/Extension | Disrupted transfer network 23663 | -4/Extension | Rescued a captive Derelict 23810 | -4/Extension | Rescued A7 23896 | -4/Extension | First assault squad dispatched 23903 | -4/Extension | Rescued a captive Derelict 23904 | -4/Extension | Rescued a captive Derelict 23939 | -4/Extension | Energy Cycler disabled 23940 | -4/Extension | Rescued a captive Derelict 23941 | -4/Extension | Rescued a captive Derelict 23942 | -4/Extension | Rescued a captive Derelict 23942 | -4/Extension | Rescued a captive Derelict 23945 | -4/Extension | Rescued a captive Derelict 23957 | -4/Extension | Spotted B-86 Titan 23998 | -4/Extension | High security lockdown imminent 24001 | -4/Extension | Spotted B-86 Titan 24003 | -4/Extension | Discovered exit to Research (range 18) 24006 | -4/Extension | P-70 Sage assimilated allied X8-WM1(b) 24013 | -4/Extension | P-70 Sage assimilated allied OU-JNJ(h) 24030 | -4/Extension | Extracted ID and sensor layout for unrecognized location from A7's data core 24078 | -4/Extension | High security lockdown engaged 24095 | -4/Extension | Lost 8 allies 24106 | -4/Extension | Discovered exit to Research (range 9) 24106 | -4/Extension | Discovered new exit (range 5) 24107 | -4/Extension | Identified exit to Cetus 24110 | -4/Extension | Entered Cetus 24161 | -4/Cetus | Spotted Cetus Guard 24161 | -4/Cetus | Spotted Cetus Guard 24162 | -4/Cetus | Spotted Cetus Guard 24162 | -4/Cetus | Spotted Cetus Guard 24181 | -4/Cetus | Discovered new exit (range 19) 24183 | -4/Cetus | Identified exit to Archives 24183 | -4/Cetus | Entered Archives 24199 | -4/Archives | Discovered exit to Research (range 13) 24209 | -4/Archives | Discovered new exit (range 13) 24227 | -4/Archives | Discovered new exit (range 19) 24233 | -4/Archives | Core integrity fell below 20% 24233 | -4/Archives | Reached level 28 24303 | -4/Archives | Unable to access archive contents 25691 | -4/Archives | Upgraded with Utility slot (x1) 25873 | -4/Archives | Identified exit to Hub_04(d) 26930 | -4/Archives | Entered Hub_04(d) 26931 | -4/Hub_04(d) | Discovered exit to Research (range 22) 27081 | -4/Hub_04(d) | Discovered exit to Research (range 22) 27210 | -4/Hub_04(d) | Discovered exit to Research (range 17) 27450 | -4/Hub_04(d) | Network Hub disabled 27460 | -4/Hub_04(d) | Discovered exit to Research (range 3) 27468 | -4/Hub_04(d) | Network Hub disabled 27470 | -4/Hub_04(d) | Spotted Lightning 27470 | -4/Hub_04(d) | Spotted Lightning 27482 | -4/Hub_04(d) | Garrison activated, responded to threat 27489 | -4/Hub_04(d) | Network Hub disabled 27531 | -4/Hub_04(d) | Spotted Lightning 27531 | -4/Hub_04(d) | Spotted Lightning 27532 | -4/Hub_04(d) | Spotted Lightning 27546 | -4/Hub_04(d) | Disrupted transfer network 27546 | -4/Hub_04(d) | Spotted Lightning 27546 | -4/Hub_04(d) | Spotted Lightning 27546 | -4/Hub_04(d) | Spotted Lightning 27548 | -4/Hub_04(d) | Network Hub disabled 27566 | -4/Hub_04(d) | Entered Research 27567 | -3/Research | Identified exit to Armory 27568 | -3/Research | Loaded intel: 83 trap records 27722 | -3/Research | Core integrity fell below 50% 27735 | -3/Research | Reached level 29 27816 | -3/Research | First assault squad dispatched 27871 | -3/Research | Discovered new exit (range 23) 27921 | -3/Research | Identified exit to Research 27962 | -3/Research | Discovered new exit (range 22) 27984 | -3/Research | Identified exit to Quarantine 27985 | -3/Research | Entered Quarantine 27996 | -3/Quarantine | Spotted Alpha 7 28113 | -3/Quarantine | Discovered exit to Research (range 13) 28236 | -3/Quarantine | Found Alien Artifact 28277 | -3/Quarantine | Found Alien Slashing Weapon 28277 | -3/Quarantine | Identified Sigix Broadsword 28299 | -3/Quarantine | Found Alien Artifact 28299 | -3/Quarantine | Identified Core Reset Matrix 28299 | -3/Quarantine | Identified Subatomic Replicator 28299 | -3/Quarantine | Used Core Reset Matrix 28303 | -3/Quarantine | Detected hypermatrix surge 28303 | -3/Quarantine | Sensed 6 artifacts in vicinity 28325 | -3/Quarantine | Found Core Cannon 28406 | -3/Quarantine | Met incapacitated Sigix Warrior 28406 | -3/Quarantine | Lockdown squad dispatched 28407 | -3/Quarantine | Acquired the access code to the Sigix quarantine chamber 28407 | -3/Quarantine | Unlocked Sigix quarantine chamber 28426 | -3/Quarantine | Discovered exit to Research (range 24) 28441 | -3/Quarantine | Entered Research 28443 | -2/Research | Reached level 30 28504 | -2/Research | Reached level 31 28570 | -2/Research | Identified exit to Testing 28657 | -2/Research | Discovered new exit (range 24) 28684 | -2/Research | Spotted B-90 Cyclops 28691 | -2/Research | First assault squad dispatched 28736 | -2/Research | Discovered new exit (range 14) 28745 | -2/Research | Entered Testing 28758 | -2/Testing | Found Prototype Energy Cannon 28758 | -2/Testing | Identified Imp. Potential Cannon 28760 | -2/Testing | Found Prototype Energy Cannon 28760 | -2/Testing | Identified Potential Cannon 28817 | -2/Testing | Found Prototype Energy Gun 28817 | -2/Testing | Identified Warp Gun 28863 | -2/Testing | Discovered new exit (range 21) 28868 | -2/Testing | Fabricated Lgt. Quantum Reactor? 28877 | -2/Testing | Identified exit to Access 28888 | -2/Testing | Found Prototype Ballistic Cannon 28888 | -2/Testing | Identified Perforator 28902 | -2/Testing | Found Prototype Energy Gun 28902 | -2/Testing | Identified Tachyon Dispersion Ray 28923 | -2/Testing | Found Prototype Device 28923 | -2/Testing | Identified AEGIS Remote Shield 29014 | -2/Testing | Found Prototype Ballistic Gun 29014 | -2/Testing | Identified Hyp. Multirail 29074 | -2/Testing | Scanned by Researcher 29095 | -2/Testing | Spotted Fortress 29107 | -2/Testing | Discovered new exit (range 11) 29108 | -2/Testing | Identified exit to Section 7 29119 | -2/Testing | Entered Section 7 29120 | -2/Section 7 | Sensed 22 artifacts in vicinity 29121 | -2/Section 7 | Reached level 32 29180 | -2/Section 7 | Core integrity fell below 50% 29190 | -2/Section 7 | Core integrity fell below 20% 29209 | -2/Section 7 | Found Integrated Dissipator 29209 | -2/Section 7 | Installed Integrated Dissipator, increased core heat dissipation (+20) 29215 | -2/Section 7 | Discovered exit to Access (range 20) 29217 | -2/Section 7 | Spotted S7 Guard 29414 | -2/Section 7 | Destroyed S7 Guard 29491 | -2/Section 7 | Build established: Alien-Scout 29494 | -2/Section 7 | Spotted B-99 Colossus 29502 | -2/Section 7 | Found LRC Inertial Stabilizer 29502 | -2/Section 7 | Installed LRC Inertial Stabilizer, increased mass support (+10) 29504 | -2/Section 7 | Found LRC Storage 29504 | -2/Section 7 | Installed LRC Storage, increased inventory capacity (+2) 29505 | -2/Section 7 | Found LRC Matter Compressor 29505 | -2/Section 7 | Installed LRC Matter Compressor, increased matter storage capacity (+125) 29516 | -2/Section 7 | Found Core Expander 29516 | -2/Section 7 | Installed Core Expander, added new Propulsion slot 29588 | -2/Section 7 | Spotted Executioner 29588 | -2/Section 7 | Spotted Executioner 29592 | -2/Section 7 | Spotted Striker 29592 | -2/Section 7 | Spotted Striker 29648 | -2/Section 7 | Found Sigix Sheargun 29650 | -2/Section 7 | Found Sigix Sheargun 29684 | -2/Section 7 | Spotted Executioner 29684 | -2/Section 7 | Spotted Executioner 29762 | -2/Section 7 | Found Integrated Dissipator 29762 | -2/Section 7 | Installed Integrated Dissipator, increased core heat dissipation (+20) 29821 | -2/Section 7 | Found Integrated Dissipator 29821 | -2/Section 7 | Installed Integrated Dissipator, increased core heat dissipation (+20) 29844 | -2/Section 7 | Spotted B-90 Cyclops 29847 | -2/Section 7 | Entered Access 29848 | -1/Access | Core integrity fell below 50% 29849 | -1/Access | Reached level 33 29944 | -1/Access | Repaired Broken Adv. Phase Shifter 29979 | -1/Access | Reached level 34 30293 | -1/Access | Emitted hypermatrix ping 30298 | -1/Access | Assembled emerged from beneath the floor 30351 | -1/Access | Lost 4 allies 30361 | -1/Access | Repaired Broken Lrn. Terrain Scanner 30483 | -1/Access | Identified exit to Command 30507 | -1/Access | Found Unknown Launcher 30522 | -1/Access | Identified Gamma Bomb Array 30576 | -1/Access | Core integrity fell below 20% 30579 | -1/Access | Incoming investigation squad redirected 30617 | -1/Access | Fabricated Prc. Energy Filter (x1) 30655 | -1/Access | Fabricated Prc. Energy Filter (x1) 30811 | -1/Access | Reached level 35 30816 | -1/Access | Upgraded with Utility slot (x1) 30847 | -1/Access | First assault squad dispatched 30862 | -1/Access | Assembled emerged from beneath the floor 30882 | -1/Access | Assembled emerged from beneath the floor 30883 | -1/Access | Incoming investigation squad redirected 30916 | -1/Access | Assembled emerged from beneath the floor 30919 | -1/Access | Lost 6 allies 30923 | -1/Access | Incoming assault squad redirected 30984 | -1/Access | Assembled emerged from beneath the floor 30988 | -1/Access | Destroyed 7 combat bots 31030 | -1/Access | Discovered new exit (range 24) 31058 | -1/Access | Lost 14 allies 31062 | -1/Access | Spotted B-99 Colossus 31062 | -1/Access | Spotted B-99 Colossus 31081 | -1/Access | Energy Cycler disabled 31109 | -1/Access | Destroyed 9 combat bots 31148 | -1/Access | Assembled emerged from beneath the floor 31150 | -1/Access | Found Exp. Shock Absorption System 31232 | -1/Access | Reached level 36 31232 | -1/Access | High security lockdown imminent 31266 | -1/Access | Assembled emerged from beneath the floor 31296 | -1/Access | Assembled emerged from beneath the floor 31309 | -1/Access | Destroyed 17 combat bots 31312 | -1/Access | High security lockdown engaged 31325 | -1/Access | Lost 5 allies 31334 | -1/Access | Identified exit to Surface 31335 | *** | Destroyed 0b10! Last Messages --------------- 31305_ K-01 Serf collects debris. 31310_ U-05 Engineer lays Concrete. 31310_ Wave Collapse Detector explodes. 31312_ ALERT: Lockdown in effect, collecting threat data. 31314_ The unstable cave ceiling collapses. 31316_ Detected hypermatrix ping. 31323_ G-73 Enforcer destroyed. 31327_ Destroyed Lgt. Quantum Reactor. 31327_ Destroyed Unknown Device. 31327_ A-15 Conveyor destroyed. 31328_ Slug penetrates W-44 Eye. 31329_ G-73 Enforcer destroyed. 31332_ ALERT: Assault forces dispatched. Sealed Heavy Doors opened remotely. 31334_ The Access Shell folds into the floor. 31334_ Penetrated by Slug. 31334_ Slug penetrates Terminal. 31334_ Slug penetrates Wall. 31334_ Penetrated by Slug. 31334_ EXIT=IDENTIFIED: SURFACE Map ----- +----------------------------------------------------+ | #??? ????????????????????????????????????????????? | | #?#??????????????????????????????????????????????? | | ####???? ????????????????????? ? ????????????????? | | ?##? #??????????????????? ? ?? ??? ?????????????? | | #? ????# ?? ???????"???#???#???#?? ????????????? | | ##???#?#??? ????? ??? ???? ? ??? ???????? | | ? ? ? ??? ?????"" ? ?? ? ?? ?# ? ??? ????????? | | ?? ?##?? #??"? ? ? ????? ? ? ? ????#?? | | ## ? #?#? #???? ???#?? ? ? ??+ ???? ?? ???? | | ?###?##?## ????? ? ?? ? ? ? ? ?? ? ???#?? | | ? ? ? # ??#?#???## ? ????? ?? ???? ?#??? | | ? ? # ?#?###????? ? ?? ????######?###?#? | | ?? ? ? ??w?? ?? ?????? ??? ??? ? #?##?##??# | | ? ?? # ? ? ???? ?? #######?## | | ??######?#?#####?????##???????#?###### ########## | | #####?###????#?############## ########?# | | ?###?#######?#??############## ########## | | " ? ###########???#?############# ######## | | ?"" #########?###?#####?######?## ######## | | """ ?##?####?#?################### ######## | | " ##################### ##### ####### | | ? # ###### | | ?# BB ###### | | ######+### BB ** ###### | | [%[*###### | | "@ ** ###### | | "" ####### | | ######## | | ########## BB ######## | | ###### BB """ """ ######## | | ###### """T""" ######## | | ########################## ####### ######## | | ################################## ######## | | ################################## """"####+# | | ################################## " | | ################################## " | | ################################ " | | ! ################ ###########""" | | ################ A % | | ################ % = ! "" | | ################ #######+###"""""" "" | | ##################### #### " " T | | ##################### #### # ## "" | | ##################### # # ##### "" | | ##################### #### ##### | | ####### ## # ##### | | ## # ##########+### | | # ## ########## ### | | ########## ## ########## ### | | ########### ########### #########+########### ### | +----------------------------------------------------+ Best States ------------- Heat Dissipation 139 Energy Generation 48 Energy Capacity 1410 Matter Stores 475 Matter Capacity 475 Sight Range 25 Robot Scan Range 25 Terrain Scan Range 24 Terrain Scan Density 2010 ECM Strength 1 Additional Mass Support 9 Corruption Block 20 Armor Coverage 1200 Resistance: KI 10 Resistance: TH 20 Resistance: EX 5 Weapon Shielding 100 Melee Speed Boost 20 Phase Shifting 15 Evasion (%) 95 Targeting Accuracy 20 Melee Accuracy 8 Armor Integrity Analysis 50 Energy Filtering 75 Particle Charging 15 Force Boost 30 Salvage Targeting 4 Offensive Hacking 34 Defensive Hacking 30 Trap Extractor Capacity 8 Item Schematics ----------------- Lgt. Quantum Reactor | -2/Section 7 | Hacked Exp. Q-thruster | -1/Access | Hacked Prc. Energy Filter | -1/Access | Scanalyzed Robot Schematics ------------------ None Fabricated ------------ M-28 Smith | x1 | -7/Factory R-06 Scavenger | x1 | -7/Factory | Preloaded G-47 Trooper | x3 | -7/Factory I-36 Angel | x1 | -7/Factory G-47 Trooper | x3 | -7/Factory Biomechanical Wings | x1 | -6/Factory Biomechanical Wings | x1 | -6/Factory B-48 Gladiator | x3 | -6/Factory | Preloaded R-10 Processor | x1 | -5/Factory | Preloaded Field Propulsion Drive | x2 | -5/Factory | Preloaded Lgt. Regenerative Plating | x1 | -4/Factory Adv. Phase Shifter | x1 | -4/Factory Lgt. Quantum Reactor | x2 | -2/Testing | Preloaded Prc. Energy Filter | x1 | -1/Access Prc. Energy Filter | x1 | -1/Access Alien Tech Used ----------------- Sigix Broadsword Core Reset Matrix Core Cannon Integrated Dissipator LRC Inertial Stabilizer LRC Storage LRC Matter Compressor Core Expander Sigix Sheargun Achievements -------------- None Challenges ------------ None RPGLIKE | -11 -10 -10 -8 -7 -7 -7 -7 -6 -6 -6 -6 -6 -6 -5 -5 -5 -5 -5 -4 -4 -4 -4 -4 -4 -3 -3 -2 -2 -2 -1 --------- Run | Yrd Mat Sub Mat Fac Low Low Dat Pro Fac Low Low Zio Dee Pro Fac Upp Upp War Pro Fac Ext Cet Arc Hub Res Qua Res Tes Sec Acc Levels Raised 35 | . 2 1 3 4 2 1 . 1 5 1 . . . 1 2 . . 1 . 2 . . 1 . 1 . 2 . 1 4 XP Earned 56635 | 3000 3160 1700 5055 6375 2873 1178 453 1285 7363 706 208 82 251 856 3803 343 201 491 607 2061 1209 97 151 683 1030 1259 1850 1146 1466 5693 XP Spent 53920 | 2870 3075 1000 4900 4200 4800 1400 . . 7900 . 2600 200 . 1500 3030 . . 1400 . . . . 2900 1350 . 1750 . 2700 1920 4425 Upgrades 98 | 11 10 1 15 7 3 3 . . 9 . 1 1 . 3 9 . . 1 . . . . 1 2 . 1 . 2 12 6 Power Slot 1 | . . . . . . . . . . . . . . . 1 . . . . . . . . . . . . . . . Propulsion Slot 5 | 1 . . 2 1 . . . . 1 . . . . . . . . . . . . . . . . . . . . . Utility Slot 10 | 1 1 . 1 1 2 . . . 1 . 1 . . . . . . . . . . . 1 . . . . . . 1 Weapon Slot 4 | 1 1 . . . 1 . . . . . . . . . . . . 1 . . . . . . . . . . . . Core Integrity 25 | . 5 . 1 . . . . . . . . . . . 2 . . . . . . . . . . . . . 12 5 Heat Dissipation 9 | 4 . . . . . . . . . . . . . . 5 . . . . . . . . . . . . . . . Energy Generation 3 | . . . . . . . . . 1 . . . . . . . . . . . . . . 2 . . . . . . Matter Storage 1 | . . . . . . . . . . . . 1 . . . . . . . . . . . . . . . . . . Mass Support 4 | . . . . 1 . 1 . . . . . . . . . . . . . . . . . . . . . 2 . . Inventory Capacity 7 | 2 1 1 . . . . . . 1 . . . . . 1 . . . . . . . . . . 1 . . . . Sight Range 3 | . . . . 1 . 2 . . . . . . . . . . . . . . . . . . . . . . . . Sensor Range 10 | . . . 10 . . . . . . . . . . . . . . . . . . . . . . . . . . . Ranged Accuracy 3 | . . . . . . . . . . . . . . 3 . . . . . . . . . . . . . . . . Melee Accuracy 4 | . . . 1 3 . . . . . . . . . . . . . . . . . . . . . . . . . . Hack Attack % 4 | . . . . . . . . . 4 . . . . . . . . . . . . . . . . . . . . . KI Resistance % 2 | 1 . . . . . . . . 1 . . . . . . . . . . . . . . . . . . . . . TH Resistance % 2 | 1 1 . . . . . . . . . . . . . . . . . . . . . . . . . . . . . EX Resistance % 1 | . 1 . . . . . . . . . . . . . . . . . . . . . . . . . . . . . Protomatter Created 8123 | . 185 189 432 330 304 160 . 88 1508 480 155 . 100 90 623 332 58 494 7 243 436 . 149 234 175 61 243 75 372 600 Integrity Restored 17627 | . 260 486 963 1050 801 595 . 257 2508 443 73 . 227 311 1384 980 108 243 . 708 1306 . 447 690 525 181 384 171 1032 1494 Core 15065 | . 233 486 963 1050 801 410 . 91 1909 326 61 . 199 263 770 763 59 243 . 708 1199 . 447 446 525 172 244 171 1032 1494 Parts 2562 | . 27 . . . . 185 . 166 599 117 12 . 28 48 614 217 49 . . . 107 . . 244 . 9 140 . . . Protomatter Decayed 3981 | . 57 27 111 87 . . . . 499 217 130 . . 27 111 7 27 2139 . 53 391 . . . . . 86 . 12 . Game ------ Seed HeartRecyclingPendant Manual? 0 Play Time 11:59:34 Cumulative 235.7 hours Start 2024.06.17 @ 09:02:26 End 2024.06.23 @ 08:58:38 Sessions 24 Manual Loads 0 Difficulty Rogue Special Mode Winter2019/RPGLIKE Game No. 65 Rogue 60 Adventurer 4 Explorer 1 Win Type 3 Total 5 Types 1/0/1/2/0/0/0/0/1 Lore% 51 Gallery% 69 Achievement% 44 Wizard Run 0 Options --------- Layout 0 ASCII 0 Keyboard 0 Movement Mouse Keybinds 0 Fullscreen 1 Font 24/Smallcaps Map View 76x50 Zoom Use 0% Tactical HUD 1 Map Filters NONE Filters NONE Steam X RUN: 06180240-0c19-495f-9a33-a29134d9c045